Workbook

Sheet LDC Info
AA3: Algoma Power Inc.
AA4: Atikokan Hydro Inc.
AA5: Attawapiskat Power Corporation
AA6: Bluewater Power Distribution Corporation
AA7: Brant County Power Inc.
AA8: Brantford Power Inc.
AA9: Burlington Hydro Inc.
AA10: Cambridge and North Dumfries Hydro Inc.
AA11: Canadian Niagara Power Inc.
AA12: Centre Wellington Hydro Ltd.
AA13: Chapleau Public Utilities Corporation
D14: Utility Name | E14: Waterloo North Hydro Inc. | AA14: COLLUS PowerStream Corp.
AA15: Cooperative Hydro Embrun Inc.
D16: Assigned EB Number | E16: EB-2015-0108 | AA16: E.L.K. Energy Inc.
AA17: Enersource Hydro Mississauga Inc.
D18: Name of Contact and Title | E18: Albert P. Singh | AA18: Entegrus Powerlines Inc.
AA19: EnWin Utilities Ltd.
D20: Phone Number | E20: 519-888-5542 | AA20: Erie Thames Powerlines Corporation
AA21: Espanola Regional Hydro Distribution Corporation
D22: Email Address | E22: asingh@wnhydro.com | AA22: Essex Powerlines Corporation
AA23: Festival Hydro Inc.
D24: Test Year | E24: 2016 | AA24: Fort Albany Power Corporation
AA25: Fort Frances Power Corporation
D26: Bridge Year | E26: =IF(ISBLANK(E24), "", E24-1) -> 2015 | AA26: Greater Sudbury Hydro Inc.
AA27: Grimsby Power Inc.
D28: Last Rebasing Year | E28: 2011 | AA28: Guelph Hydro Electric Systems Inc.
AA29: Haldimand County Hydro Inc.
A30: Identify the accounting standard used for the test year | AA30: Halton Hills Hydro Inc.
E31: MIFRS | AA31: Hearst Power Distribution Company Limited
AA32: Horizon Utilities Corporation
A33: Did you update your depreciation and capitalization policies? | AA33: Hydro 2000 Inc.
E34: Yes | AA34: Hydro Hawkesbury Inc.
AA35: Hydro One Brampton Networks Inc.
A36: When did you update your depreciation and capitalization policies? | AA36: Hydro One Networks Inc.
E37: 2001-01-01 | F37: 2013 | AA37: Hydro One Remote Communities Inc.
AA38: Hydro Ottawa Limited
A39: Identify the year that the applicant has adopted or is expected to adopt IFRS for financial reporting purposes | AA39: Innpower Corporation
E40: 2015 or Later | AA40: Kashechewan Power Corporation
AA41: Kenora Hydro Electric Corporation Ltd.
AA42: Kingston Hydro Corporation
A43: Are you applying for cost recovery for the test and/or future year(s) for Green Energy initiatives? | AA43: Kitchener-Wilmot Hydro Inc.
E44: No | AA44: Lakefront Utilities Inc.
AA45: Lakeland Power Distribution Ltd.
A46: ="Is " & E14 & " an embedded distributor?" -> Is Waterloo North Hydro Inc. an embedded distributor? | E46: Yes | AA46: London Hydro Inc.
AA47: Midland Power Utility Corporation
AA48: Milton Hydro Distribution Inc.
B49: Notes | AA49: Newmarket-Tay Power Distribution Ltd.
AA50: Niagara Peninsula Energy Inc.
C51: Pale green cells represent input cells. | AA51: Niagara-on-the-Lake Hydro Inc.
AA52: Norfolk Power Distribution Inc.
C53: Pale blue cells represent drop-down lists. The applicant should select the appropriate item from the drop-down list. | AA53: North Bay Hydro Distribution Limited
AA54: Northern Ontario Wires Inc.
C55: White cells contain fixed values, automatically generated values or formulae. | AA55: Oakville Hydro Electricity Distribution Inc.
AA56: Orangeville Hydro Limited
AA57: Orillia Power Distribution Corporation
AA58: Oshawa PUC Networks Inc.
AA59: Ottawa River Power Corporation
AA60: Peterborough Distribution Incorporated
AA61: PowerStream Inc.
AA62: PUC Distribution Inc.
AA63: Renfrew Hydro Inc.
AA64: Rideau St. Lawrence Distribution Inc.
AA65: Sioux Lookout Hydro Inc.
AA66: St. Thomas Energy Inc.
AA67: Thunder Bay Hydro Electricity Distribution Inc.
AA68: Tillsonburg Hydro Inc.
AA69: Toronto Hydro-Electric System Limited
AA70: Veridian Connections Inc.
AA71: Wasaga Distribution Inc.
AA72: Waterloo North Hydro Inc.
AA73: Welland Hydro-Electric System Corp.
AA74: Wellington North Power Inc.
AA75: West Coast Huron Energy Inc.
AA76: Westario Power Inc.
AA77: Whitby Hydro Electric Corporation
AA78: Woodstock Hydro Services Inc.

Sheet Index
A15: 1 | B15: LDC Information Sheet | E15: 28 | F15: App.2-G: Service Reliability Indicators
A16: 2 | B16: Index | E16: 29 | F16: App.2-H: Other Operating Revenue
A17: 3 | B17: Cost of Service Application Flowchart | E17: 30 | F17: App.2-I: Load Forecast CDM Adjustment Workform
A18: 4 | B18: List of Key References | E18: 31 | F18: App.2-IA: Actual and Forecast Load and Customer Data
A19: 5 | B19: App.2-AA: Capital Projects Table | E19: 32 | F19: App.2-JA: OM&A Summary Analysis
A20: 6 | B20: App.2-AB: Capital Expenditures | E20: 33 | F20: App.2-JB: Recoverable OM&A Cost Driver Table
A21: 7 | B21: App. 2-AC: Customer Engagement Worksheet | E21: 34 | F21: App.2-JC: OM&A Programs Table
A22: 8 | B22: App.2-B: General Accounting Instructions | E22: 35 | F22: App.2-K: Employee Costs
A23: 9 | B23: App.2-BA: Fixed Asset Continuity Schedule | E23: 36 | F23: App.2-L: Recoverable OM&A Cost per Customer and per FTE
A24: 10 | B24: Appendix 2-BB: Service Life Comparison | E24: 37 | F24: App.2-M: Regulatory Costs Schedule
A25: 11 | B25: App.2-CA: 2012 Depreciation and Amortization Expense (Old CGAAP) | E25: 38 | F25: App.2-N: Shared Servcies and Corporate Cost Allocation
A26: 12 | B26: App.2-CB: 2012 Depreciation and Amortization Expense (New CGAAP) | E26: 39 | F26: App.2-OA: Capital Structure and Cost of Capital
A27: 13 | B27: App.2-CC: 2013 Depreciation and Amortization Expense (New CGAAP) | E27: 40 | F27: App.2-OB: Debt Instruments
A28: 14 | B28: App.2-CD: 2014 Depreciation and Amortization Expense (MIFRS) | E28: 41 | F28: App.2-P: Cost Allocation
A29: 15 | B29: App.2-CE: 2015 Depreciation and Amortization Expense (MIFRS) | E29: 42 | F29: App.2-PA: New Rate Design Policy For Residential Customers
A30: 16 | B30: App.2-CF: 2015 Depreciation and Amortization Expense (MIFRS) | E30: 43 | F30: App.2-Q: Cost of Serving Embedded Distributor(s)
A31: 17 | B31: App.2-CG: 2013 Depreciation and Amortization Expense (Old CGAAP) | E31: 44 | F31: App.2-R: Loss Factors
A32: 18 | B32: App.2-CH: 2013 Depreciation and Amortization Expense (New CGAAP) | E32: 45 | F32: App.2-S: Stranded Meter Treatment
A33: 19 | B33: App.2-CI: 2014 Depreciation and Amortization Expense (MIFRS) | E33: 46 | F33: App.2-TA: Account 1592, PILs and Tax Variances
A34: 20 | B34: App.2-CJ: 2015 Depreciation and Amortization Expense (MIFRS) | E34: 47 | F34: App.2-TB: Account 1592, HST-OVAT Input Tax Credits
A35: 21 | B35: App.2-CK: 2016 Depreciation and Amortization Expense (MIFRS) | E35: 48 | F35: App.2-U: One-Time Incremental IFRS Transition Costs
A36: 22 | B36: App.2-D: Overhead Expenses | E36: 49 | F36: App.2-V: Revenue Reconciliation
A37: 23 | B37: App.2-EA: Account 1575 PP&E Deferral Account (2015 IFRS Adopters) | E37: 50 | F37: App.2-W: Bill Impacts
A38: 24 | B38: App.2-EB: Account 1576 - Accounting Changes Under CGAAP (2012 Changes) | E38: 51 | F38: App.2-Y: Transition to MIFRS Summary Impact
A39: 25 | B39: App.2-EC: Account 1576 - Accounting Changes Under CGAAP (2013 Changes) | E39: 52 | F39: App. 2-Z: Tariff Schedule
A40: 26 | B40: App.2-FA: Renewable Generation Connection Investment Summary
A41: 27 | B41: App.2-FB: Calculation of Renewable Generation Connection Direct Benefits/Provincial Amount: Renewable Enabling Improvement Investments
A42: 28 | B42: App.2-FC: Calculation of Renewable Generation Connection Direct Benefits/Provincial Amount: Renewable Expansion Investments

Sheet COS Flowchart
B4: Cost of Service Rate Application Schematic
B6: The Cost of Service Rate Application Schematic is a flowchart appended to Chapter 2 of the Filing Requirements as a guide for the components of an application and how demand and costs interrelate to derive the revenue requirement and then how the revenue requirement is allocated between classes and through fixed/variable splits to derive rates that will be compensatory for the annual revenue requirement, based on the the forecasted demand. There is no form to be filled out; therefore, this Schedule is not required to be filed.

Sheet List of Key References
B3: List of Key References
A5: A list of key references for understanding the Filing Requirements has been embedded in the document below. To access the list of references and associated hyperlinks double-click the icon below.

Sheet App.2-FA Proposed REG Invest.
J1: File Number: | K1: =EBNUMBER -> EB-2015-0108
J2: Exhibit: | K2: 9
J3: Tab: | K3: 9-Staff-149
J4: Schedule:
J5: Page:
J7: Date: | K7: 2015-08-07
A9: Appendix 2-FA
A10: Renewable Generation Connection Investment Summary (past investments or over the future rate setting period)
A12: Enter the details of the Renewable Generation Connection projects as described in the appropriate section of the Filing Requirements.
A13: All costs entered on this page will be transferred to the appropriate cells in the appendices that follow.
A14: For Part A, Renewable Enabling Improvements (REI), these amounts will be transferred to Appendix 2 - FB
A15: For Part B, Expansions, these amounts will be transferred to Appendix 2 - FC
A17: If there are more than five projects proposed to be in-service in a certain year, please amend the tables below and ensure that the formulae for the Total Amounts in any given rate year are updated.
A18: Based on the current methodology and allocation, amounts allocated represent 6% for REI Connection Investments and 17% for Expansion Investments. (EB-2009-0349, 6-10-2010, p. 15, note 9)
A20: There are two scenarios described below. Separate sets of spreadsheets (2-FA, 2-FB, 2-FC) should be submited for each scenario as required.
A21: Scenario 1: Past Investments with No Recovery. The distributor has made investments in the past (during the IRM Years), but has not received approval for these projects and therefore did not receive
A22: revenue from the IESO under Regulation 330/09 and did not receive ratepayer revenue for the direct benefit portion of the investment.
A23: The WCA percentage, debt percentages, interest rates, kWh, tax rates, amortization period, CCA Class and percentage should correspond to the distributor's last Cost of Service approval.
A24: The Direct Benefit portion of the calculated Revenue Requirement for each year should be summed and can be applied for recovery from the distributor's ratepayers through a rate rider.
A25: The Provincial Recovery portion of the calculated Revenue Requirement for each year should be summed and can be applied for recovery from the IESO through a separate order.
A27: Scenario 2: Investments in the Test Year and Beyond. Distributor plans to make investments in 2016 and/or beyond. These investments should be added to 2-FA in the appropriate year.
A28: The WCA percentage, debt percentages, interest rates, kWh, tax rates, amortization period, CCA Class and percentage should correspond to the distributor's current application.
A30: Part A | G30: Test Year
A31: REI Investments (Direct Benefit at 6%) | C31: 2012 | D31: 2013 | E31: 2014 | F31: 2015 | G31: 2016 | H31: =G31+1 -> 2017 | I31: =H31+1 -> 2018 | J31: 2019 | K31: 2020
A32: Project 1
A33: Name: REI Connection Project
A34: Capital Costs | C34: 0 | D34: 0 | E34: 0 | F34: 0 | G34: 0 | H34: 0 | I34: 0 | J34: 0 | K34: 0
A35: OM&A (Start-Up) | C35: 0 | D35: 0 | E35: 0 | F35: 0 | G35: 0 | H35: 0 | I35: 0 | J35: 0 | K35: 0
A36: OM&A (Ongoing) | C36: 0 | D36: 0 | E36: 0 | F36: 0 | G36: 0 | H36: 0 | I36: 0 | J36: 0 | K36: 0
A38: Project 2
A39: Name: REI Connection Project
A40: Capital Costs | C40: 0 | D40: 0 | E40: 0 | F40: 0 | G40: 0 | H40: 0 | I40: 0 | J40: 0 | K40: 0
A41: OM&A (Start-Up) | C41: 0 | D41: 0 | E41: 0 | F41: 0 | G41: 0 | H41: 0 | I41: 0 | J41: 0 | K41: 0
A42: OM&A (Ongoing) | C42: 0 | D42: 0 | E42: 0 | F42: 0 | G42: 0 | H42: 0 | I42: 0 | J42: 0 | K42: 0
A44: Project 3
A45: Name: REI Connection Project
A46: Capital Costs | C46: 0 | D46: 0 | E46: 0 | F46: 0 | G46: 0 | H46: 0 | I46: 0 | J46: 0 | K46: 0
A47: OM&A (Start-Up) | C47: 0 | D47: 0 | E47: 0 | F47: 0 | G47: 0 | H47: 0 | I47: 0 | J47: 0 | K47: 0
A48: OM&A (Ongoing) | C48: 0 | D48: 0 | E48: 0 | F48: 0 | G48: 0 | H48: 0 | I48: 0 | J48: 0 | K48: 0
A50: Project 4
A51: Name: REI Connection Project
A52: Capital Costs | C52: 0 | D52: 0 | E52: 0 | F52: 0 | G52: 0 | H52: 0 | I52: 0 | J52: 0 | K52: 0
A53: OM&A (Start-Up) | C53: 0 | D53: 0 | E53: 0 | F53: 0 | G53: 0 | H53: 0 | I53: 0 | J53: 0 | K53: 0
A54: OM&A (Ongoing) | C54: 0 | D54: 0 | E54: 0 | F54: 0 | G54: 0 | H54: 0 | I54: 0 | J54: 0 | K54: 0
A56: Project 5
A57: Name: REI Connection Project
A58: Capital Costs | C58: 0 | D58: 0 | E58: 0 | F58: 0 | G58: 0 | H58: 0 | I58: 0 | J58: 0 | K58: 0
A59: OM&A (Start-Up) | C59: 0 | D59: 0 | E59: 0 | F59: 0 | G59: 0 | H59: 0 | I59: 0 | J59: 0 | K59: 0
A60: OM&A (Ongoing) | C60: 0 | D60: 0 | E60: 0 | F60: 0 | G60: 0 | H60: 0 | I60: 0 | J60: 0 | K60: 0
A62: Total Capital Costs | C62: =SUM(C58,C52,C46,C40,C34) -> 0 | D62: 0 | E62: 0 | F62: 0 | G62: =SUM(G58,G52,G46,G40,G34) -> 0 | H62: =SUM(H58,H52,H46,H40,H34) -> 0 | I62: 0 | J62: 0 | K62: 0
A63: Total OM&A (Start-Up) | C63: 0 | D63: 0 | E63: 0 | F63: 0 | G63: =SUM(G59,G53,G47,G41,G35) -> 0 | H63: 0 | I63: 0 | J63: 0 | K63: 0
A64: Total OM&A (Ongoing) | C64: 0 | D64: 0 | E64: 0 | F64: 0 | G64: =SUM(G60,G54,G48,G42,G36) -> 0 | H64: 0 | I64: 0 | J64: 0 | K64: 0
A67: Part B | G67: Test Year
A68: Expansion Investments (Direct Benefit at 17%) | C68: 2012 | D68: 2013 | E68: 2014 | F68: 2015 | G68: 2016 | H68: =G68+1 -> 2017 | I68: =H68+1 -> 2018 | J68: 2019 | K68: 2020
A69: Project 1
A70: Name: Expansion Connection Project
A71: Capital Costs | C71: 0 | D71: 117320.21 | E71: 0 | F71: 0 | G71: 0 | H71: 0 | I71: 0 | J71: 0 | K71: 0
A72: OM&A (Start-Up) | C72: 0 | D72: 0 | E72: 0 | F72: 0 | G72: 0 | H72: 0 | I72: 0 | J72: 0 | K72: 0
A73: OM&A (Ongoing) | C73: 0 | D73: 0 | E73: 0 | F73: 0 | G73: 0 | H73: 0 | I73: 0 | J73: 0 | K73: 0
A75: Project 2
A76: Name: Expansion Connection Project
A77: Capital Costs | C77: 0 | D77: 0 | E77: 0 | F77: 0 | G77: 0 | H77: 0 | I77: 0 | J77: 0 | K77: 0
A78: OM&A (Start-Up) | C78: 0 | D78: 0 | E78: 0 | F78: 0 | G78: 0 | H78: 0 | I78: 0 | J78: 0 | K78: 0
A79: OM&A (Ongoing) | C79: 0 | D79: 0 | E79: 0 | F79: 0 | G79: 0 | H79: 0 | I79: 0 | J79: 0 | K79: 0
A81: Project 3
A82: Name: Expansion Connection Project
A83: Capital Costs | C83: 0 | D83: 0 | E83: 0 | F83: 0 | G83: 0 | H83: 0 | I83: 0 | J83: 0 | K83: 0
A84: OM&A (Start-Up) | C84: 0 | D84: 0 | E84: 0 | F84: 0 | G84: 0 | H84: 0 | I84: 0 | J84: 0 | K84: 0
A85: OM&A (Ongoing) | C85: 0 | D85: 0 | E85: 0 | F85: 0 | G85: 0 | H85: 0 | I85: 0 | J85: 0 | K85: 0
A87: Project 4
A88: Name: Expansion Connection Project
A89: Capital Costs | C89: 0 | D89: 0 | E89: 0 | F89: 0 | G89: 0 | H89: 0 | I89: 0 | J89: 0 | K89: 0
A90: OM&A (Start-Up) | C90: 0 | D90: 0 | E90: 0 | F90: 0 | G90: 0 | H90: 0 | I90: 0 | J90: 0 | K90: 0
A91: OM&A (Ongoing) | C91: 0 | D91: 0 | E91: 0 | F91: 0 | G91: 0 | H91: 0 | I91: 0 | J91: 0 | K91: 0
A93: Project 5
A94: Name: Expansion Connection Project
A95: Capital Costs | C95: 0 | D95: 0 | E95: 0 | F95: 0 | G95: 0 | H95: 0 | I95: 0 | J95: 0 | K95: 0
A96: OM&A (Start-Up) | C96: 0 | D96: 0 | E96: 0 | F96: 0 | G96: 0 | H96: 0 | I96: 0 | J96: 0 | K96: 0
A97: OM&A (Ongoing) | C97: 0 | D97: 0 | E97: 0 | F97: 0 | G97: 0 | H97: 0 | I97: 0 | J97: 0 | K97: 0
A99: Total Capital Costs | C99: =SUM(C95,C89,C83,C77,C71) -> 0 | D99: 117320.21 | E99: 0 | F99: 0 | G99: =SUM(G95,G89,G83,G77,G71) -> 0 | H99: =SUM(H95,H89,H83,H77,H71) -> 0 | I99: 0 | J99: 0 | K99: 0
A100: Total OM&A (Start-Up) | C100: 0 | D100: 0 | E100: 0 | F100: 0 | G100: =SUM(G96,G90,G84,G78,G72) -> 0 | H100: 0 | I100: 0 | J100: 0 | K100: 0
A101: Total OM&A (Ongoing) | C101: 0 | D101: 0 | E101: 0 | F101: 0 | G101: =SUM(G97,G91,G85,G79,G73) -> 0 | H101: 0 | I101: 0 | J101: 0 | K101: 0

Sheet App.2-FB Calc of REG Improvemnt
N1: File Number: | O1: =EBNUMBER -> EB-2015-0108
N2: Exhibit:
N3: Tab:
N4: Schedule:
N5: Page:
N7: Date:
A9: Appendix 2-FB
A10: Calculation of Renewable Generation Connection Direct Benefits/Provincial Amount: Renewable Enabling Improvement Investments
A12: This table will calculate the distributor/provincial shares of the investments entered in Part A of Appendix 2-FA.
A13: Enter values in green shaded cells: WCA percentage, debt percentages, interest rates, kWh, tax rates, amortization period, CCA Class and percentage.
A14: For historical investments, enter these variables for your last cost of service test year. For 2016 and beyond, enter variables as in the application.
A15: Rate Riders are not calculated for Test Year as these assets and costs are already in the distributor's rate base/revenue requirement.
C17: 2012 | F17: 2013 | I17: 2014 | L17: 2015 | O17: 2016 Test Year | R17: 2017 | U17: 2018 | V17: 2016 | X17: 2019 | AA17: 2020
D18: Direct Benefit | E18: Provincial | G18: Direct Benefit | H18: Provincial | J18: Direct Benefit | K18: Provincial | M18: Direct Benefit | N18: Provincial | P18: Direct Benefit | Q18: Provincial | S18: Direct Benefit | T18: Provincial | V18: Direct Benefit | W18: Provincial | Y18: Direct Benefit | Z18: Provincial | AB18: Direct Benefit | AC18: Provincial
C19: Total | D19: 0.06 | E19: 0.94 | F19: Total | G19: 0.06 | H19: 0.94 | I19: Total | J19: 0.06 | K19: 0.94 | L19: Total | M19: 0.06 | N19: 0.94 | O19: Total | P19: 0.06 | Q19: 0.94 | R19: Total | S19: 0.06 | T19: 0.94 | U19: Total | V19: 0.06 | W19: 0.94 | X19: Total | Y19: 0.06 | Z19: 0.94 | AA19: Total | AB19: 0.06 | AC19: 0.94
A20: Net Fixed Assets (average) | C20: =D82 -> 0 | D20: =C20*D19 -> 0 | E20: =C20*E19 -> 0 | F20: =E82 -> 0 | G20: =F20*G19 -> 0 | H20: =F20*H19 -> 0 | I20: =F82 -> 0 | J20: =I20*J19 -> 0 | K20: =I20*K19 -> 0 | L20: =G82 -> 0 | M20: =L20*M19 -> 0 | N20: =L20*N19 -> 0 | O20: =H82 -> 0 | P20: =O20*P19 -> 0 | Q20: =O20*Q19 -> 0 | R20: =I82 -> 0 | S20: =R20*S19 -> 0 | T20: =R20*T19 -> 0 | U20: =J82 -> 0 | V20: =U20*V19 -> 0 | W20: =U20*W19 -> 0 | X20: =K82 -> 0 | Y20: =X20*Y19 -> 0 | Z20: =X20*Z19 -> 0 | AA20: =L82 -> 0 | AB20: =AA20*AB19 -> 0 | AC20: =AA20*AC19 -> 0
A21: Incremental OM&A (on-going, N/A for Provincial Recovery) | C21: ='App.2-FA Proposed REG Invest.'!C64 -> 0 | D21: =C21 -> 0 | F21: ='App.2-FA Proposed REG Invest.'!D64 -> 0 | G21: =F21 -> 0 | I21: ='App.2-FA Proposed REG Invest.'!E64 -> 0 | J21: =I21 -> 0 | L21: ='App.2-FA Proposed REG Invest.'!F64 -> 0 | M21: =L21 -> 0 | O21: ='App.2-FA Proposed REG Invest.'!G64 -> 0 | P21: =O21 -> 0 | R21: ='App.2-FA Proposed REG Invest.'!H64 -> 0 | S21: =R21 -> 0 | U21: ='App.2-FA Proposed REG Invest.'!I64 -> 0 | V21: =U21 -> 0 | X21: ='App.2-FA Proposed REG Invest.'!J64 -> 0 | Y21: =X21 -> 0 | AA21: ='App.2-FA Proposed REG Invest.'!K64 -> 0 | AB21: =AA21 -> 0
A22: Incremental OM&A (start-up, applicable for Provincial Recovery) | C22: ='App.2-FA Proposed REG Invest.'!C63 -> 0 | D22: =C22*D19 -> 0 | E22: =C22*E19 -> 0 | F22: ='App.2-FA Proposed REG Invest.'!D63 -> 0 | G22: =F22*G19 -> 0 | H22: =F22*H19 -> 0 | I22: ='App.2-FA Proposed REG Invest.'!E63 -> 0 | J22: =I22*J19 -> 0 | K22: =I22*K19 -> 0 | L22: ='App.2-FA Proposed REG Invest.'!F63 -> 0 | M22: =L22*M19 -> 0 | N22: =L22*N19 -> 0 | O22: ='App.2-FA Proposed REG Invest.'!G63 -> 0 | P22: =O22*P19 -> 0 | Q22: =O22*Q19 -> 0 | R22: ='App.2-FA Proposed REG Invest.'!H63 -> 0 | S22: =R22*S19 -> 0 | T22: =R22*T19 -> 0 | U22: ='App.2-FA Proposed REG Invest.'!I63 -> 0 | V22: =U22*V19 -> 0 | W22: =U22*W19 -> 0 | X22: ='App.2-FA Proposed REG Invest.'!J63 -> 0 | Y22: =X22*Y19 -> 0 | Z22: =X22*Z19 -> 0 | AA22: ='App.2-FA Proposed REG Invest.'!K63 -> 0 | AB22: =AA22*AB19 -> 0 | AC22: =AA22*AC19 -> 0
A23: WCA | D23: =(D21+D22)*$B$23 -> 0 | E23: =E22*$B$23 -> 0 | G23: =(G21+G22)*$B$23 -> 0 | H23: =H22*$B$23 -> 0 | J23: =(J21+J22)*$B$23 -> 0 | K23: =K22*$B$23 -> 0 | M23: =(M21+M22)*$B$23 -> 0 | N23: =N22*$B$23 -> 0 | P23: =(P21+P22)*$B$23 -> 0 | Q23: =Q22*$B$23 -> 0 | S23: =(S21+S22)*$B$23 -> 0 | T23: =T22*$B$23 -> 0 | V23: =(V21+V22)*$B$23 -> 0 | W23: =W22*$B$23 -> 0 | Y23: =(Y21+Y22)*$B$23 -> 0 | Z23: =Z22*$B$23 -> 0 | AB23: =(AB21+AB22)*$B$23 -> 0 | AC23: =AC22*$B$23 -> 0
A24: Rate Base | D24: =SUM(D20+D23) -> 0 | E24: =SUM(E20+E23) -> 0 | G24: =SUM(G20+G23) -> 0 | H24: =SUM(H20+H23) -> 0 | J24: =SUM(J20+J23) -> 0 | K24: =SUM(K20+K23) -> 0 | M24: =SUM(M20+M23) -> 0 | N24: =SUM(N20+N23) -> 0 | P24: =SUM(P20+P23) -> 0 | Q24: =SUM(Q20+Q23) -> 0 | S24: =SUM(S20+S23) -> 0 | T24: =SUM(T20+T23) -> 0 | V24: =SUM(V20+V23) -> 0 | W24: =SUM(W20+W23) -> 0 | Y24: =SUM(Y20+Y23) -> 0 | Z24: =SUM(Z20+Z23) -> 0 | AB24: =SUM(AB20+AB23) -> 0 | AC24: =SUM(AC20+AC23) -> 0
A27: Deemed ST Debt | D27: =D24*$B$27 -> 0 | E27: =E24*$B$27 -> 0 | G27: =G24*$B$27 -> 0 | H27: =H24*$B$27 -> 0 | J27: =J24*$B$27 -> 0 | K27: =K24*$B$27 -> 0 | M27: =M24*$B$27 -> 0 | N27: =N24*$B$27 -> 0 | P27: =P24*$B$27 -> 0 | Q27: =Q24*$B$27 -> 0 | S27: =S24*$B$27 -> 0 | T27: =T24*$B$27 -> 0 | V27: =V24*$B$27 -> 0 | W27: =W24*$B$27 -> 0 | Y27: =Y24*$B$27 -> 0 | Z27: =Z24*$B$27 -> 0 | AB27: =AB24*$B$27 -> 0 | AC27: =AC24*$B$27 -> 0
A28: Deemed LT Debt | D28: =D24*$B$28 -> 0 | E28: =E24*$B$28 -> 0 | G28: =G24*$B$28 -> 0 | H28: =H24*$B$28 -> 0 | J28: =J24*$B$28 -> 0 | K28: =K24*$B$28 -> 0 | M28: =M24*$B$28 -> 0 | N28: =N24*$B$28 -> 0 | P28: =P24*$B$28 -> 0 | Q28: =Q24*$B$28 -> 0 | S28: =S24*$B$28 -> 0 | T28: =T24*$B$28 -> 0 | V28: =V24*$B$28 -> 0 | W28: =W24*$B$28 -> 0 | Y28: =Y24*$B$28 -> 0 | Z28: =Z24*$B$28 -> 0 | AB28: =AB24*$B$28 -> 0 | AC28: =AC24*$B$28 -> 0
A29: Deemed Equity | D29: =D24*$B$29 -> 0 | E29: =E24*$B$29 -> 0 | G29: =G24*$B$29 -> 0 | H29: =H24*$B$29 -> 0 | J29: =J24*$B$29 -> 0 | K29: =K24*$B$29 -> 0 | M29: =M24*$B$29 -> 0 | N29: =N24*$B$29 -> 0 | P29: =P24*$B$29 -> 0 | Q29: =Q24*$B$29 -> 0 | S29: =S24*$B$29 -> 0 | T29: =T24*$B$29 -> 0 | V29: =V24*$B$29 -> 0 | W29: =W24*$B$29 -> 0 | Y29: =Y24*$B$29 -> 0 | Z29: =Z24*$B$29 -> 0 | AB29: =AB24*$B$29 -> 0 | AC29: =AC24*$B$29 -> 0
A31: ST Interest | D31: =D27*$B31 -> 0 | E31: =E27*$B31 -> 0 | G31: =G27*$B31 -> 0 | H31: =H27*$B31 -> 0 | J31: =J27*$B31 -> 0 | K31: =K27*$B31 -> 0 | M31: =M27*$B31 -> 0 | N31: =N27*$B31 -> 0 | P31: =P27*$B31 -> 0 | Q31: =Q27*$B31 -> 0 | S31: =S27*$B31 -> 0 | T31: =T27*$B31 -> 0 | V31: =V27*$B31 -> 0 | W31: =W27*$B31 -> 0 | Y31: =Y27*$B31 -> 0 | Z31: =Z27*$B31 -> 0 | AB31: =AB27*$B31 -> 0 | AC31: =AC27*$B31 -> 0
A32: LT Interest | D32: =D28*$B32 -> 0 | E32: 0 | G32: =G28*$B32 -> 0 | H32: 0 | J32: =J28*$B32 -> 0 | K32: 0 | M32: =M28*$B32 -> 0 | N32: 0 | P32: =P28*$B32 -> 0 | Q32: 0 | S32: =S28*$B32 -> 0 | T32: 0 | V32: =V28*$B32 -> 0 | W32: 0 | Y32: =Y28*$B32 -> 0 | Z32: 0 | AB32: =AB28*$B32 -> 0 | AC32: 0
A33: ROE | D33: 0 | E33: 0 | G33: 0 | H33: 0 | J33: 0 | K33: 0 | M33: 0 | N33: 0 | P33: 0 | Q33: 0 | S33: 0 | T33: 0 | V33: 0 | W33: 0 | Y33: 0 | Z33: 0 | AB33: 0 | AC33: 0
A34: Cost of Capital Total | D34: =SUM(D31:D33) -> 0 | E34: =SUM(E31:E33) -> 0 | G34: =SUM(G31:G33) -> 0 | H34: =SUM(H31:H33) -> 0 | J34: =SUM(J31:J33) -> 0 | K34: =SUM(K31:K33) -> 0 | M34: =SUM(M31:M33) -> 0 | N34: =SUM(N31:N33) -> 0 | P34: =SUM(P31:P33) -> 0 | Q34: =SUM(Q31:Q33) -> 0 | S34: =SUM(S31:S33) -> 0 | T34: =SUM(T31:T33) -> 0 | V34: =SUM(V31:V33) -> 0 | W34: =SUM(W31:W33) -> 0 | Y34: =SUM(Y31:Y33) -> 0 | Z34: =SUM(Z31:Z33) -> 0 | AB34: =SUM(AB31:AB33) -> 0 | AC34: =SUM(AC31:AC33) -> 0
A36: OM&A | D36: =D21+D22 -> 0 | E36: =E22 -> 0 | G36: =G21+G22 -> 0 | H36: =H22 -> 0 | J36: =J21+J22 -> 0 | K36: =K22 -> 0 | M36: =M21+M22 -> 0 | N36: =N22 -> 0 | P36: =P21+P22 -> 0 | Q36: =Q22 -> 0 | S36: =S21+S22 -> 0 | T36: =T22 -> 0 | V36: =V21+V22 -> 0 | W36: =W22 -> 0 | Y36: =Y21+Y22 -> 0 | Z36: =Z22 -> 0 | AB36: =AB21+AB22 -> 0 | AC36: =AC22 -> 0
A37: Amortization | C37: =D77 -> 0 | D37: =C37*D$19 -> 0 | E37: =C37*E$19 -> 0 | F37: =E77 -> 0 | G37: =F37*G$19 -> 0 | H37: =F37*H$19 -> 0 | I37: =F77 -> 0 | J37: =I37*J$19 -> 0 | K37: =I37*K$19 -> 0 | L37: =G77 -> 0 | M37: =L37*M$19 -> 0 | N37: =L37*N$19 -> 0 | O37: =H77 -> 0 | P37: =O37*P$19 -> 0 | Q37: =O37*Q$19 -> 0 | R37: =I76+I77 -> 0 | S37: =R37*S$19 -> 0 | T37: =R37*T$19 -> 0 | U37: =J76+J77 -> 0 | V37: =U37*V$19 -> 0 | W37: =U37*W$19 -> 0 | X37: =K76+K77 -> 0 | Y37: =X37*Y$19 -> 0 | Z37: =X37*Z$19 -> 0 | AA37: =L76+L77 -> 0 | AB37: =AA37*AB$19 -> 0 | AC37: =AA37*AC$19 -> 0
A38: Grossed-up PILs | D38: =D65 -> 0 | E38: =E65 -> 0 | G38: =G65 -> 0 | H38: =H65 -> 0 | J38: =J65 -> 0 | K38: =K65 -> 0 | M38: =M65 -> 0 | N38: =N65 -> 0 | P38: =P65 -> 0 | Q38: =Q65 -> 0 | S38: =S65 -> 0 | T38: =T65 -> 0 | V38: =V65 -> 0 | W38: =W65 -> 0 | Y38: =Y65 -> 0 | Z38: =Z65 -> 0 | AB38: =AB65 -> 0 | AC38: =AC65 -> 0
A40: Revenue Requirement | D40: =SUM(D34:D38) -> 0 | E40: =SUM(E34:E38) -> 0 | G40: =SUM(G34:G38) -> 0 | H40: =SUM(H34:H38) -> 0 | J40: =SUM(J34:J38) -> 0 | K40: =SUM(K34:K38) -> 0 | M40: =SUM(M34:M38) -> 0 | N40: =SUM(N34:N38) -> 0 | P40: =SUM(P34:P38) -> 0 | Q40: =SUM(Q34:Q38) -> 0 | S40: =SUM(S34:S38) -> 0 | T40: =SUM(T34:T38) -> 0 | V40: =SUM(V34:V38) -> 0 | W40: =SUM(W34:W38) -> 0 | Y40: =SUM(Y34:Y38) -> 0 | Z40: =SUM(Z34:Z38) -> 0 | AB40: =SUM(AB34:AB38) -> 0 | AC40: =SUM(AC34:AC38) -> 0
A43: Provincial Rate Protection | E43: =E40 -> 0 | H43: =H40 -> 0 | K43: =K40 -> 0 | N43: =N40 -> 0 | Q43: =Q40 -> 0 | T43: =T40 -> 0 | W43: =W40 -> 0 | Z43: =Z40 -> 0 | AC43: =AC40 -> 0
A45: Monthly Amount Paid by IESO | E45: =E43/12 -> 0 | H45: =H43/12 -> 0 | K45: =K43/12 -> 0 | N45: =N43/12 -> 0 | Q45: =Q43/12 -> 0 | T45: =T43/12 -> 0 | W45: =W43/12 -> 0 | Z45: =Z43/12 -> 0 | AC45: =AC43/12 -> 0
A47: Note 1: The difference between the actual costs of approved eligible investments and revenue received from the IESO should be recorded in a variance account. The Board may provide
A48: regulatory accounting guidance regarding a variance account either in an individual proceeding or on a generic basis.
A49: Note 2: For the 2016 Test Year, Costs and Revenues of the Direct Benefit are to be included in the test year applicant Rate Base and Revenues.
A51: PILs Calculation
D52: 2012 | G52: 2013 | J52: 2014 | M52: 2015 | P52: 2016 | S52: =P52+1 -> 2017 | V52: =S52+1 -> 2018 | Y52: =V52+1 -> 2019 | AB52: =Y52+1 -> 2020
A53: Income Tax | D53: Direct Benefit | E53: Provincial | G53: Direct Benefit | H53: Provincial | J53: Direct Benefit | K53: Provincial | M53: Direct Benefit | N53: Provincial | P53: Direct Benefit | Q53: Provincial | S53: Direct Benefit | T53: Provincial | V53: Direct Benefit | W53: Provincial | Y53: Direct Benefit | Z53: Provincial | AB53: Direct Benefit | AC53: Provincial
X54: Total | AA54: Total
A55: Net Income - ROE on Rate Base | D55: =D33 -> 0 | E55: =E33 -> 0 | G55: =G33 -> 0 | H55: =H33 -> 0 | J55: =J33 -> 0 | K55: =K33 -> 0 | M55: =M33 -> 0 | N55: =N33 -> 0 | P55: =P33 -> 0 | Q55: =Q33 -> 0 | S55: =S33 -> 0 | T55: =T33 -> 0 | V55: =V33 -> 0 | W55: =W33 -> 0 | Y55: =Y33 -> 0 | Z55: =Z33 -> 0 | AB55: =AB33 -> 0 | AC55: =AC33 -> 0
A56: Amortization (6% DB and 94% P) | D56: =D37 -> 0 | E56: =E37 -> 0 | G56: =G37 -> 0 | H56: =H37 -> 0 | J56: =J37 -> 0 | K56: =K37 -> 0 | M56: =M37 -> 0 | N56: =N37 -> 0 | P56: =P37 -> 0 | Q56: =Q37 -> 0 | S56: =S37 -> 0 | T56: =T37 -> 0 | V56: =V37 -> 0 | W56: =W37 -> 0 | Y56: =Y37 -> 0 | Z56: =Z37 -> 0 | AB56: =AB37 -> 0 | AC56: =AC37 -> 0
A57: CCA (6% DB and 94% P) | D57: =-D94*D$19 -> 0 | E57: =-D94*E$19 -> 0 | G57: =-E94*G19 -> 0 | H57: =-E94*H$19 -> 0 | J57: =-F94*J$19 -> 0 | K57: =-F94*K$19 -> 0 | M57: =-G94*M$19 -> 0 | N57: =-G94*N$19 -> 0 | P57: =-H94*P$19 -> 0 | Q57: =-H94*Q$19 -> 0 | S57: =-I94*S$19 -> 0 | T57: =-I94*T$19 -> 0 | V57: =-J94*V$19 -> 0 | W57: =-J94*W$19 -> 0 | Y57: =-K94*Y$19 -> 0 | Z57: =-K94*Z$19 -> 0 | AB57: =-L94*AB$19 -> 0 | AC57: =-L94*AC$19 -> 0
A58: Taxable income | D58: =SUM(D55:D57) -> 0 | E58: =SUM(E55:E57) -> 0 | G58: =SUM(G55:G57) -> 0 | H58: =SUM(H55:H57) -> 0 | J58: =SUM(J55:J57) -> 0 | K58: =SUM(K55:K57) -> 0 | M58: =SUM(M55:M57) -> 0 | N58: =SUM(N55:N57) -> 0 | P58: =SUM(P55:P57) -> 0 | Q58: =SUM(Q55:Q57) -> 0 | S58: =SUM(S55:S57) -> 0 | T58: =SUM(T55:T57) -> 0 | V58: =SUM(V55:V57) -> 0 | W58: =SUM(W55:W57) -> 0 | Y58: =SUM(Y55:Y57) -> 0 | Z58: =SUM(Z55:Z57) -> 0 | AB58: =SUM(AB55:AB57) -> 0 | AC58: =SUM(AC55:AC57) -> 0
A60: Tax Rate (to be entered)
A62: Income Taxes Payable | D62: =D58*D60 -> 0 | E62: =E58*E60 -> 0 | G62: =G58*G60 -> 0 | H62: =H58*H60 -> 0 | J62: =J58*J60 -> 0 | K62: =K58*K60 -> 0 | M62: =M58*M60 -> 0 | N62: =N58*N60 -> 0 | P62: =P58*P60 -> 0 | Q62: =Q58*Q60 -> 0 | S62: =S58*S60 -> 0 | T62: =T58*T60 -> 0 | V62: =V58*V60 -> 0 | W62: =W58*W60 -> 0 | Y62: =Y58*Y60 -> 0 | Z62: =Z58*Z60 -> 0 | AB62: =AB58*AB60 -> 0 | AC62: =AC58*AC60 -> 0
A63: Gross Up
A64: Income Taxes Payable | D64: =D62/(1-D60) -> 0 | E64: =E62/(1-E60) -> 0 | G64: =G62/(1-G60) -> 0 | H64: =H62/(1-H60) -> 0 | J64: =J62/(1-J60) -> 0 | K64: =K62/(1-K60) -> 0 | M64: =M62/(1-M60) -> 0 | N64: =N62/(1-N60) -> 0 | P64: =P62/(1-P60) -> 0 | Q64: =Q62/(1-Q60) -> 0 | S64: =S62/(1-S60) -> 0 | T64: =T62/(1-T60) -> 0 | V64: =V62/(1-V60) -> 0 | W64: =W62/(1-W60) -> 0 | Y64: =Y62/(1-Y60) -> 0 | Z64: =Z62/(1-Z60) -> 0 | AB64: =AB62/(1-AB60) -> 0 | AC64: =AC62/(1-AC60) -> 0
A65: Grossed Up PILs | D65: =SUM(D64:D64) -> 0 | E65: =SUM(E64:E64) -> 0 | G65: =SUM(G64:G64) -> 0 | H65: =SUM(H64:H64) -> 0 | J65: =SUM(J64:J64) -> 0 | K65: =SUM(K64:K64) -> 0 | M65: =SUM(M64:M64) -> 0 | N65: =SUM(N64:N64) -> 0 | P65: =SUM(P64:P64) -> 0 | Q65: =SUM(Q64:Q64) -> 0 | S65: =SUM(S64:S64) -> 0 | T65: =SUM(T64:T64) -> 0 | V65: =SUM(V64:V64) -> 0 | W65: =SUM(W64:W64) -> 0 | Y65: =SUM(Y64:Y64) -> 0 | Z65: =SUM(Z64:Z64) -> 0 | AB65: =SUM(AB64:AB64) -> 0 | AC65: =SUM(AC64:AC64) -> 0
D68: 2012 | E68: 2013 | F68: 2014 | G68: 2015 | H68: 2016 | I68: =H68+1 -> 2017 | J68: =I68+1 -> 2018 | K68: 2019 | L68: 2020
A69: Net Fixed Assets
B70: Enter applicable amortization in years: | C70: 25
A71: Opening Gross Fixed Assets | E71: =D73 -> 0 | F71: 0 | G71: 0 | H71: 0 | I71: =H73 -> 0 | J71: =I73 -> 0 | K71: =J73 -> 0 | L71: =K73 -> 0
A72: Gross Capital Additions | D72: ='App.2-FA Proposed REG Invest.'!C62 -> 0 | E72: ='App.2-FA Proposed REG Invest.'!D62 -> 0 | F72: ='App.2-FA Proposed REG Invest.'!E62 -> 0 | G72: ='App.2-FA Proposed REG Invest.'!F62 -> 0 | H72: ='App.2-FA Proposed REG Invest.'!G62 -> 0 | I72: ='App.2-FA Proposed REG Invest.'!H62 -> 0 | J72: ='App.2-FA Proposed REG Invest.'!I62 -> 0 | K72: ='App.2-FA Proposed REG Invest.'!J62 -> 0 | L72: ='App.2-FA Proposed REG Invest.'!K62 -> 0
A73: Closing Gross Fixed Assets | D73: =SUM(D71:D72) -> 0 | E73: 0 | F73: 0 | G73: 0 | H73: =SUM(H71:H72) -> 0 | I73: =SUM(I71:I72) -> 0 | J73: 0 | K73: 0 | L73: 0
A75: Opening Accumulated Amortization | E75: =+D78 -> 0 | F75: =E78 -> 0 | G75: 0 | H75: 0 | I75: 0 | J75: 0 | K75: 0 | L75: 0
A76: Current Year Amortization (before additions) | D76: =IF(ISERROR(D71/$C$70), 0, D71/$C$70) -> 0 | E76: 0 | F76: 0 | G76: 0 | H76: 0 | I76: =IF(ISERROR(I71/$C$70), 0, I71/$C$70) -> 0 | J76: =IF(ISERROR(J71/$C$70), 0, J71/$C$70) -> 0 | K76: =IF(ISERROR(K71/$C$70), 0, K71/$C$70) -> 0 | L76: =IF(ISERROR(L71/$C$70), 0, L71/$C$70) -> 0
A77: Additions (half year) | D77: =D72/$C$70/2 -> 0 | E77: =E72/$C$70/2 -> 0 | F77: =F72/$C$70/2 -> 0 | G77: 0 | H77: =H72/$C$70/2 -> 0 | I77: =I72/C70/2 -> 0 | J77: =J72/C70/2 -> 0 | K77: =K72/C70/2 -> 0 | L77: =L72/C70/2 -> 0
A78: Closing Accumulated Amortization | D78: =SUM(D75+D76+D77) -> 0 | E78: =SUM(E75+E76+E77) -> 0 | F78: =SUM(F75+F76+F77) -> 0 | G78: =SUM(G75+G76+G77) -> 0 | H78: =SUM(H75+H76+H77) -> 0 | I78: =SUM(I75:I77) -> 0 | J78: =SUM(J75:J77) -> 0 | K78: =SUM(K75:K77) -> 0 | L78: =SUM(L75:L77) -> 0
A80: Opening Net Fixed Assets | D80: =D71-D75 -> 0 | E80: 0 | F80: =F71-F75 -> 0 | G80: 0 | H80: =H71-H75 -> 0 | I80: =H81 -> 0 | J80: =I81 -> 0 | K80: =J81 -> 0 | L80: =K81 -> 0
A81: Closing Net Fixed Assets | D81: =D73-D78 -> 0 | E81: =E73-E78 -> 0 | F81: 0 | G81: 0 | H81: =H73-H78 -> 0 | I81: =I73-I78 -> 0 | J81: =J73-J78 -> 0 | K81: =K73-K78 -> 0 | L81: =L73-L78 -> 0
A82: Average Net Fixed Assets | D82: =SUM(D80:D81)/2 -> 0 | E82: 0 | F82: 0 | G82: 0 | H82: =SUM(H80:H81)/2 -> 0 | I82: =SUM(I80:I81)/2 -> 0 | J82: =SUM(J80:J81)/2 -> 0 | K82: =SUM(K80:K81)/2 -> 0 | L82: =SUM(L80:L81)/2 -> 0
A84: UCC for PILs Calculation
D85: 2012 | E85: 2013 | F85: 2014 | G85: 2015 | H85: 2016 | I85: =H85+1 -> 2017 | J85: =I85+1 -> 2018 | K85: 2019 | L85: 2020
A87: Opening UCC | E87: =D95 -> 0 | F87: 0 | G87: 0 | H87: 0 | I87: 0 | J87: 0 | K87: 0 | L87: 0
A88: Capital Additions (from Appendix 2-FA) | D88: =D72 -> 0 | E88: 0 | F88: 0 | G88: 0 | H88: =H72 -> 0 | I88: =I72 -> 0 | J88: 0 | K88: 0 | L88: 0
A89: UCC Before Half Year Rule | D89: =SUM(D87:D88) -> 0 | E89: 0 | F89: 0 | G89: 0 | H89: =SUM(H87:H88) -> 0 | I89: =SUM(I87:I88) -> 0 | J89: =SUM(J87:J88) -> 0 | K89: =SUM(K87:K88) -> 0 | L89: =SUM(L87:L88) -> 0
A90: Half Year Rule (1/2 Additions - Disposals) | D90: =D88/2 -> 0 | E90: 0 | F90: 0 | G90: 0 | H90: =H88/2 -> 0 | I90: =I88/2 -> 0 | J90: =J88/2 -> 0 | K90: =K88/2 -> 0 | L90: =L88/2 -> 0
A91: Reduced UCC | D91: =D89-D90 -> 0 | E91: 0 | F91: 0 | G91: 0 | H91: =H89-H90 -> 0 | I91: =I89-I90 -> 0 | J91: =J89-J90 -> 0 | K91: =K89-K90 -> 0 | L91: =L89-L90 -> 0
A92: CCA Rate Class (to be entered) | C92: 47 | D92: =C92 -> 47 | E92: =D92 -> 47 | F92: 47 | G92: 47 | H92: 47 | I92: 47 | J92: 47 | K92: 47 | L92: 47
A93: CCA Rate (to be entered) | C93: 0.08 | D93: =C93 -> 0.08 | E93: 0.08 | F93: 0.08 | G93: 0.08 | H93: 0.08 | I93: 0.08 | J93: 0.08 | K93: 0.08 | L93: 0.08
A94: CCA | D94: =D91*D93 -> 0 | E94: 0 | F94: 0 | G94: 0 | H94: =H91*H93 -> 0 | I94: =I91*I93 -> 0 | J94: 0 | K94: 0 | L94: =L91*L93 -> 0
A95: Closing UCC | D95: =D89-D94 -> 0 | E95: 0 | F95: 0 | G95: 0 | H95: =H89-H94 -> 0 | I95: =I89-I94 -> 0 | J95: =J89-J94 -> 0 | K95: =K89-K94 -> 0 | L95: =L89-L94 -> 0

Sheet App.2-FC Calc of REG Expansion
N1: File Number: | O1: =EBNUMBER -> EB-2015-0108
N2: Exhibit: | O2: 9
N3: Tab: | O3: 9-Staff-149
N4: Schedule:
N5: Page:
N7: Date: | O7: 2015-08-07
A9: Appendix 2-FC
A10: Calculation of Renewable Generation Connection Direct Benefits/Provincial Amount: Renewable Expansion Investments
A12: This table will calculate the distributor/provincial shares of the investments entered in Part B of Appendix 2-FA.
A13: Enter values in green shaded cells: WCA percentage, debt percentages, interest rates, kWh, tax rates, amortization period, CCA Class and percentage.
A14: For historical investments, enter these variables for your last cost of service test year. For 2016 and beyond, enter variables as in the application.
A15: Rate Riders are not calculated for Test Year as these assets and costs are already in the distributor's rate base.
D18: 2012 | G18: 2013 | J18: 2014 | M18: 2015 | P18: 2016 TEST YEAR | S18: 2017 | T18: 2016 | V18: 2018 | Y18: 2019 | AB18: 2020
E19: Direct Benefit | F19: Provincial | H19: Direct Benefit | I19: Provincial | K19: Direct Benefit | L19: Provincial | N19: Direct Benefit | O19: Provincial | Q19: Direct Benefit | R19: Provincial | T19: Direct Benefit | U19: Provincial | W19: Direct Benefit | X19: Provincial | Z19: Direct Benefit | AA19: Provincial | AC19: Direct Benefit | AD19: Provincial
D20: Total | E20: 0.17 | F20: 0.83 | G20: Total | H20: 0.17 | I20: 0.83 | J20: Total | K20: 0.17 | L20: 0.83 | M20: Total | N20: 0.17 | O20: 0.83 | P20: Total | Q20: 0.17 | R20: 0.83 | S20: Total | T20: 0.17 | U20: 0.83 | V20: Total | W20: 0.17 | X20: 0.83 | Y20: Total | Z20: 0.17 | AA20: 0.83 | AB20: Total | AC20: 0.17 | AD20: 0.83
A21: Net Fixed Assets (average) | D21: =D82 -> 0 | E21: =D21*E20 -> 0 | F21: =D21*F20 -> 0 | G21: =E82 -> 57486.9029 | H21: =G21*H20 -> 9772.773493 | I21: =G21*I20 -> 47714.12941 | J21: =F82 -> 112627.4016 | K21: =J21*K20 -> 19146.65827 | L21: =J21*L20 -> 93480.74333 | M21: =G82 -> 107934.5932 | N21: =M21*N20 -> 18348.88084 | O21: =M21*O20 -> 89585.71236 | P21: =H82 -> 103241.7848 | Q21: =P21*Q20 -> 17551.10342 | R21: =P21*R20 -> 85690.68138 | S21: =I82 -> 98548.9764 | T21: =S21*T20 -> 16753.32599 | U21: =S21*U20 -> 81795.65041 | V21: =J82 -> 93856.168 | W21: =V21*W20 -> 15955.54856 | X21: =V21*X20 -> 77900.61944 | Y21: =K82 -> 89163.3596 | Z21: =Y21*Z20 -> 15157.77113 | AA21: =Y21*AA20 -> 74005.58847 | AB21: =L82 -> 84470.5512 | AC21: =AB21*AC20 -> 14359.9937 | AD21: =AB21*AD20 -> 70110.5575
A22: Incremental OM&A (on-going, N/A for Provincial Recovery) | D22: ='App.2-FA Proposed REG Invest.'!C101 -> 0 | E22: =D22 -> 0 | G22: ='App.2-FA Proposed REG Invest.'!D$101 -> 0 | H22: =G22 -> 0 | J22: ='App.2-FA Proposed REG Invest.'!E$101 -> 0 | K22: =J22 -> 0 | M22: ='App.2-FA Proposed REG Invest.'!F$101 -> 0 | N22: =M22 -> 0 | P22: ='App.2-FA Proposed REG Invest.'!G$101 -> 0 | Q22: =P22 -> 0 | S22: ='App.2-FA Proposed REG Invest.'!H$101 -> 0 | T22: =S22 -> 0 | V22: ='App.2-FA Proposed REG Invest.'!I$101 -> 0 | W22: =V22 -> 0 | Y22: ='App.2-FA Proposed REG Invest.'!J$101 -> 0 | Z22: =Y22 -> 0 | AB22: ='App.2-FA Proposed REG Invest.'!K$101 -> 0 | AC22: =AB22 -> 0
A23: Incremental OM&A (start-up, applicable for Provincial Recovery) | D23: ='App.2-FA Proposed REG Invest.'!C100 -> 0 | E23: =D23*E20 -> 0 | F23: =D23*F20 -> 0 | G23: ='App.2-FA Proposed REG Invest.'!D$100 -> 0 | H23: =G23*H20 -> 0 | I23: =G23*I20 -> 0 | J23: ='App.2-FA Proposed REG Invest.'!E$100 -> 0 | K23: =J23*K20 -> 0 | L23: =J23*L20 -> 0 | M23: ='App.2-FA Proposed REG Invest.'!F$100 -> 0 | N23: =M23*N20 -> 0 | O23: =M23*O20 -> 0 | P23: ='App.2-FA Proposed REG Invest.'!G$100 -> 0 | Q23: =P23*Q20 -> 0 | R23: =P23*R20 -> 0 | S23: ='App.2-FA Proposed REG Invest.'!H$100 -> 0 | T23: =S23*T20 -> 0 | U23: =S23*U20 -> 0 | V23: ='App.2-FA Proposed REG Invest.'!I$100 -> 0 | W23: =V23*W20 -> 0 | X23: =V23*X20 -> 0 | Y23: ='App.2-FA Proposed REG Invest.'!J$100 -> 0 | Z23: =Y23*Z20 -> 0 | AA23: =Y23*AA20 -> 0 | AB23: ='App.2-FA Proposed REG Invest.'!K$100 -> 0 | AC23: =AB23*AC20 -> 0 | AD23: =AB23*AD20 -> 0
A24: WCA | B24: 0.15 | E24: =(E22+E23)*$B$24 -> 0 | F24: =F23*$B$24 -> 0 | H24: =(H22+H23)*$B$24 -> 0 | I24: =I23*$B$24 -> 0 | K24: =(K22+K23)*$B$24 -> 0 | L24: =L23*$B$24 -> 0 | N24: =(N22+N23)*$B$24 -> 0 | O24: =O23*$B$24 -> 0 | Q24: =(Q22+Q23)*$B$24 -> 0 | R24: =R23*$B$24 -> 0 | T24: =(T22+T23)*$B$24 -> 0 | U24: =U23*$B$24 -> 0 | W24: =(W22+W23)*$B$24 -> 0 | X24: =X23*$B$24 -> 0 | Z24: =(Z22+Z23)*$B$24 -> 0 | AA24: =AA23*$B$24 -> 0 | AC24: =(AC22+AC23)*$B$24 -> 0 | AD24: =AD23*$B$24 -> 0
A25: Rate Base | E25: =SUM(E21+E24) -> 0 | F25: =SUM(F21+F24) -> 0 | H25: =SUM(H21+H24) -> 9772.773493 | I25: =SUM(I21+I24) -> 47714.12941 | K25: =SUM(K21+K24) -> 19146.65827 | L25: =SUM(L21+L24) -> 93480.74333 | N25: =SUM(N21+N24) -> 18348.88084 | O25: =SUM(O21+O24) -> 89585.71236 | Q25: =SUM(Q21+Q24) -> 17551.10342 | R25: =SUM(R21+R24) -> 85690.68138 | T25: =SUM(T21+T24) -> 16753.32599 | U25: =SUM(U21+U24) -> 81795.65041 | W25: =SUM(W21+W24) -> 15955.54856 | X25: =SUM(X21+X24) -> 77900.61944 | Z25: =SUM(Z21+Z24) -> 15157.77113 | AA25: =SUM(AA21+AA24) -> 74005.58847 | AC25: =SUM(AC21+AC24) -> 14359.9937 | AD25: =SUM(AD21+AD24) -> 70110.5575
A28: Deemed ST Debt | B28: 0.04 | E28: =E25*$B$28 -> 0 | F28: =F25*$B$28 -> 0 | H28: =H25*$B$28 -> 390.9109397 | I28: =I25*$B$28 -> 1908.565176 | K28: =K25*$B$28 -> 765.8663309 | L28: =L25*$B$28 -> 3739.229733 | N28: =N25*$B$28 -> 733.9552338 | O28: =O25*$B$28 -> 3583.428494 | Q28: =Q25*$B$28 -> 702.0441366 | R28: =R25*$B$28 -> 3427.627255 | T28: =T25*$B$28 -> 670.1330395 | U28: =U25*$B$28 -> 3271.826016 | W28: =W25*$B$28 -> 638.2219424 | X28: =X25*$B$28 -> 3116.024778 | Z28: =Z25*$B$28 -> 606.3108453 | AA28: =AA25*$B$28 -> 2960.223539 | AC28: =AC25*$B$28 -> 574.3997482 | AD28: =AD25*$B$28 -> 2804.4223
A29: Deemed LT Debt | B29: 0.56 | E29: =E25*$B$29 -> 0 | F29: =F25*$B$29 -> 0 | H29: =H25*$B$29 -> 5472.753156 | I29: =I25*$B$29 -> 26719.91247 | K29: =K25*$B$29 -> 10722.12863 | L29: =L25*$B$29 -> 52349.21626 | N29: =N25*$B$29 -> 10275.37327 | O29: =O25*$B$29 -> 50167.99892 | Q29: =Q25*$B$29 -> 9828.617913 | R29: =R25*$B$29 -> 47986.78158 | T29: =T25*$B$29 -> 9381.862553 | U29: =U25*$B$29 -> 45805.56423 | W29: =W25*$B$29 -> 8935.107194 | X29: =X25*$B$29 -> 43624.34689 | Z29: =Z25*$B$29 -> 8488.351834 | AA29: =AA25*$B$29 -> 41443.12954 | AC29: =AC25*$B$29 -> 8041.596474 | AD29: =AD25*$B$29 -> 39261.9122
A30: Deemed Equity | B30: 0.4 | E30: =E25*$B$30 -> 0 | F30: =F25*$B$30 -> 0 | H30: =H25*$B$30 -> 3909.109397 | I30: =I25*$B$30 -> 19085.65176 | K30: =K25*$B$30 -> 7658.663309 | L30: =L25*$B$30 -> 37392.29733 | N30: =N25*$B$30 -> 7339.552338 | O30: =O25*$B$30 -> 35834.28494 | Q30: =Q25*$B$30 -> 7020.441366 | R30: =R25*$B$30 -> 34276.27255 | T30: =T25*$B$30 -> 6701.330395 | U30: =U25*$B$30 -> 32718.26016 | W30: =W25*$B$30 -> 6382.219424 | X30: =X25*$B$30 -> 31160.24778 | Z30: =Z25*$B$30 -> 6063.108453 | AA30: =AA25*$B$30 -> 29602.23539 | AC30: =AC25*$B$30 -> 5743.997482 | AD30: =AD25*$B$30 -> 28044.223
A32: ST Interest | B32: 0.0246 | E32: =E28*$B$32 -> 0 | F32: =F28*$B$32 -> 0 | H32: =H28*$B$32 -> 9.616409117 | I32: =I28*$B$32 -> 46.95070334 | K32: =K28*$B$32 -> 18.84031174 | L32: =L28*$B$32 -> 91.98505143 | N32: =N28*$B$32 -> 18.05529875 | O32: =O28*$B$32 -> 88.15234096 | Q32: =Q28*$B$32 -> 17.27028576 | R32: =R28*$B$32 -> 84.31963048 | T32: =T28*$B$32 -> 16.48527277 | U32: =U28*$B$32 -> 80.48692001 | W32: =W28*$B$32 -> 15.70025978 | X32: =X28*$B$32 -> 76.65420953 | Z32: =Z28*$B$32 -> 14.91524679 | AA32: =AA28*$B$32 -> 72.82149905 | AC32: =AC28*$B$32 -> 14.1302338 | AD32: =AD28*$B$32 -> 68.98878858
A33: LT Interest | B33: 0.05215731565 | E33: =E29*$B$33 -> 0 | F33: =F29*$B$33 -> 0 | H33: =H29*$B$33 -> 285.4441138 | I33: =I29*$B$33 -> 1393.638909 | K33: =K29*$B$33 -> 559.2374475 | L33: =L29*$B$33 -> 2730.394597 | N33: =N29*$B$33 -> 535.9358872 | O33: =O29*$B$33 -> 2616.628155 | Q33: =Q29*$B$33 -> 512.6343269 | R33: =R29*$B$33 -> 2502.861713 | T33: =T29*$B$33 -> 489.3327665 | U33: =U29*$B$33 -> 2389.095272 | W33: =W29*$B$33 -> 466.0312062 | X33: =X29*$B$33 -> 2275.32883 | Z33: =Z29*$B$33 -> 442.7296459 | AA33: =AA29*$B$33 -> 2161.562389 | AC33: =AC29*$B$33 -> 419.4280856 | AD33: =AD29*$B$33 -> 2047.795947
A34: ROE | B34: 0.0958 | E34: =E30*$B$34 -> 0 | F34: =F30*$B$34 -> 0 | H34: =H30*$B$34 -> 374.4926803 | I34: =I30*$B$34 -> 1828.405439 | K34: =K30*$B$34 -> 733.699945 | L34: =L30*$B$34 -> 3582.182084 | N34: =N30*$B$34 -> 703.1291139 | O34: =O30*$B$34 -> 3432.924497 | Q34: =Q30*$B$34 -> 672.5582829 | R34: =R30*$B$34 -> 3283.666911 | T34: =T30*$B$34 -> 641.9874519 | U34: =U30*$B$34 -> 3134.409324 | W34: =W30*$B$34 -> 611.4166208 | X34: =X30*$B$34 -> 2985.151737 | Z34: =Z30*$B$34 -> 580.8457898 | AA34: =AA30*$B$34 -> 2835.89415 | AC34: =AC30*$B$34 -> 550.2749587 | AD34: =AD30*$B$34 -> 2686.636563
A35: Cost of Capital Total | E35: =SUM(E32:E34) -> 0 | F35: =SUM(F32:F34) -> 0 | H35: =SUM(H32:H34) -> 669.5532032 | I35: =SUM(I32:I34) -> 3268.995051 | K35: =SUM(K32:K34) -> 1311.777704 | L35: =SUM(L32:L34) -> 6404.561732 | N35: =SUM(N32:N34) -> 1257.1203 | O35: =SUM(O32:O34) -> 6137.704993 | Q35: =SUM(Q32:Q34) -> 1202.462896 | R35: =SUM(R32:R34) -> 5870.848255 | T35: =SUM(T32:T34) -> 1147.805491 | U35: =SUM(U32:U34) -> 5603.991516 | W35: =SUM(W32:W34) -> 1093.148087 | X35: =SUM(X32:X34) -> 5337.134777 | Z35: =SUM(Z32:Z34) -> 1038.490682 | AA35: =SUM(AA32:AA34) -> 5070.278038 | AC35: =SUM(AC32:AC34) -> 983.8332781 | AD35: =SUM(AD32:AD34) -> 4803.421299
A37: OM&A | E37: =E22+E23 -> 0 | F37: =F23 -> 0 | H37: =H22+H23 -> 0 | I37: =I23 -> 0 | K37: =K22+K23 -> 0 | L37: =L23 -> 0 | N37: =N22+N23 -> 0 | O37: =O23 -> 0 | Q37: =Q22+Q23 -> 0 | R37: =R23 -> 0 | T37: =T22+T23 -> 0 | U37: =U23 -> 0 | W37: =W22+W23 -> 0 | X37: =X23 -> 0 | Z37: =Z22+Z23 -> 0 | AA37: =AA23 -> 0 | AC37: =AC22+AC23 -> 0 | AD37: =AD23 -> 0
A38: Amortization | D38: =D78 -> 0 | E38: =D38*E$20 -> 0 | F38: =D38*F$20 -> 0 | G38: =E78 -> 2346.4042 | H38: =G38*H$20 -> 398.888714 | I38: =G38*I$20 -> 1947.515486 | J38: =F78 -> 7039.2126 | K38: =J38*K$20 -> 1196.666142 | L38: =J38*L$20 -> 5842.546458 | M38: =G78 -> 11732.021 | N38: =M38*N$20 -> 1994.44357 | O38: =M38*O$20 -> 9737.57743 | P38: =H76+H77 -> 4692.8084 | Q38: =P38*Q$20 -> 797.777428 | R38: =P38*R$20 -> 3895.030972 | S38: =I76+I77 -> 4692.8084 | T38: =S38*T$20 -> 797.777428 | U38: =S38*U$20 -> 3895.030972 | V38: =J76+J77 -> 4692.8084 | W38: =V38*W$20 -> 797.777428 | X38: =V38*X$20 -> 3895.030972 | Y38: =K76+K77 -> 4692.8084 | Z38: =Y38*Z$20 -> 797.777428 | AA38: =Y38*AA$20 -> 3895.030972 | AB38: =L76+L77 -> 4692.8084 | AC38: =AB38*AC$20 -> 797.777428 | AD38: =AB38*AD$20 -> 3895.030972
A39: Grossed-up PILs | E39: =E66 -> 0 | F39: =F66 -> 0 | H39: =H66 -> 0 | I39: =I66 -> 0 | K39: =K66 -> 0 | L39: =L66 -> 0 | N39: =N66 -> 0 | O39: =O66 -> 0 | Q39: =Q66 -> 0 | R39: =R66 -> 0 | T39: =T66 -> 0 | U39: =U66 -> 0 | W39: =W66 -> 0 | X39: =X66 -> 0 | Z39: =Z66 -> 0 | AA39: =AA66 -> 0 | AC39: =AC66 -> 0 | AD39: =AD66 -> 0
A41: Revenue Requirement | E41: =SUM(E35:E39) -> 0 | F41: =SUM(F35:F39) -> 0 | H41: =SUM(H35:H39) -> 1068.441917 | I41: =SUM(I35:I39) -> 5216.510537 | K41: =SUM(K35:K39) -> 2508.443846 | L41: =SUM(L35:L39) -> 12247.10819 | N41: =SUM(N35:N39) -> 3251.56387 | O41: =SUM(O35:O39) -> 15875.28242 | Q41: =SUM(Q35:Q39) -> 2000.240324 | R41: =SUM(R35:R39) -> 9765.879227 | T41: =SUM(T35:T39) -> 1945.582919 | U41: =SUM(U35:U39) -> 9499.022488 | W41: =SUM(W35:W39) -> 1890.925515 | X41: =SUM(X35:X39) -> 9232.165749 | Z41: =SUM(Z35:Z39) -> 1836.26811 | AA41: =SUM(AA35:AA39) -> 8965.30901 | AC41: =SUM(AC35:AC39) -> 1781.610706 | AD41: =SUM(AD35:AD39) -> 8698.452271
A44: Provincial Rate Protection | F44: =F41 -> 0 | I44: =I41 -> 5216.510537 | L44: =L41 -> 12247.10819 | O44: =O41 -> 15875.28242 | R44: =R41 -> 9765.879227 | U44: =U41 -> 9499.022488 | X44: =X41 -> 9232.165749 | AA44: =AA41 -> 8965.30901 | AD44: =AD41 -> 8698.452271
A46: Monthly Amount Paid by IESO | F46: =F44/12 -> 0 | I46: =I44/12 -> 434.7092114 | L46: =L44/12 -> 1020.592349 | O46: =O44/12 -> 1322.940202 | R46: =R44/12 -> 813.8232689 | U46: =U44/12 -> 791.5852073 | X46: =X44/12 -> 769.3471457 | AA46: =AA44/12 -> 747.1090842 | AD46: =AD44/12 -> 724.8710226
A48: Note 1: The difference between the actual costs of approved eligible investments and revenue received from the IESO should be recorded in a variance account. The Board may provide
A49: regulatory accounting guidance regarding a variance account either in an individual proceeding or on a generic basis.
A50: Note 2: For the 2016 Test Year, Costs and Revenues of the Direct Benefit are to be included in the test year applicant Rate Base and Revenues.
A52: PILs Calculation
E53: 2012 | H53: 2013 | K53: 2014 | N53: 2015 | Q53: 2016 TEST YEAR | T53: 2017 | W53: 2018 | Z53: 2019 | AC53: 2020
A54: Income Tax | E54: Direct Benefit | F54: Provincial | H54: Direct Benefit | I54: Provincial | K54: Direct Benefit | L54: Provincial | N54: Direct Benefit | O54: Provincial | Q54: Direct Benefit | R54: Provincial | T54: Direct Benefit | U54: Provincial | W54: Direct Benefit | X54: Provincial | Z54: Direct Benefit | AA54: Provincial | AC54: Direct Benefit | AD54: Provincial
V55: Total | Y55: Total | AB55: Total
A56: Net Income - ROE on Rate Base | E56: =E34 -> 0 | F56: =F34 -> 0 | H56: =H34 -> 374.4926803 | I56: =I34 -> 1828.405439 | K56: =K34 -> 733.699945 | L56: =L34 -> 3582.182084 | N56: =N34 -> 703.1291139 | O56: =O34 -> 3432.924497 | Q56: =Q34 -> 672.5582829 | R56: =R34 -> 3283.666911 | T56: =T34 -> 641.9874519 | U56: =U34 -> 3134.409324 | W56: =W34 -> 611.4166208 | X56: =X34 -> 2985.151737 | Z56: =Z34 -> 580.8457898 | AA56: =AA34 -> 2835.89415 | AC56: =AC34 -> 550.2749587 | AD56: =AD34 -> 2686.636563
A57: Amortization (17% DB and 83% P) | E57: =E38 -> 0 | F57: =F38 -> 0 | H57: =H38 -> 398.888714 | I57: =I38 -> 1947.515486 | K57: =K38 -> 1196.666142 | L57: =L38 -> 5842.546458 | N57: =N38 -> 1994.44357 | O57: =O38 -> 9737.57743 | Q57: =Q38 -> 797.777428 | R57: =R38 -> 3895.030972 | T57: =T38 -> 797.777428 | U57: =U38 -> 3895.030972 | W57: =W38 -> 797.777428 | X57: =X38 -> 3895.030972 | Z57: =Z38 -> 797.777428 | AA57: =AA38 -> 3895.030972 | AC57: =AC38 -> 797.777428 | AD57: =AD38 -> 3895.030972
A58: CCA (17% DB and 83% P) | E58: =-D94*E$20 -> 0 | F58: =-D94*F$20 -> 0 | H58: =-E94*H$20 -> -797.777428 | I58: =-E94*I$20 -> -3895.030972 | K58: =-F94*K$20 -> -1531.732662 | L58: =-F94*L$20 -> -7478.459466 | N58: =-G94*N$20 -> -1409.194049 | O58: =-G94*O$20 -> -6880.182709 | Q58: =-H94*Q$20 -> -1296.458525 | R58: =-H94*R$20 -> -6329.768092 | T58: =-I94*T$20 -> -1192.741843 | U58: =-I94*U$20 -> -5823.386645 | W58: =-J94*W$20 -> -1097.322495 | X58: =-J94*X$20 -> -5357.515713 | Z58: =-K94*Z$20 -> -1009.536696 | AA58: =-K94*AA$20 -> -4928.914456 | AC58: =-L94*AC$20 -> -928.7737602 | AD58: =-L94*AD$20 -> -4534.6013
A59: Taxable income | E59: =SUM(E56:E58) -> 0 | F59: =SUM(F56:F58) -> 0 | H59: =SUM(H56:H58) -> -24.39603375 | I59: =SUM(I56:I58) -> -119.1100471 | K59: =SUM(K56:K58) -> 398.6334252 | L59: =SUM(L56:L58) -> 1946.269076 | N59: =SUM(N56:N58) -> 1288.378635 | O59: =SUM(O56:O58) -> 6290.319219 | Q59: =SUM(Q56:Q58) -> 173.877186 | R59: =SUM(R56:R58) -> 848.9297904 | T59: =SUM(T56:T58) -> 247.0230369 | U59: =SUM(U56:U58) -> 1206.053651 | W59: =SUM(W56:W58) -> 311.8715533 | X59: =SUM(X56:X58) -> 1522.666996 | Z59: =SUM(Z56:Z58) -> 369.0865219 | AA59: =SUM(AA56:AA58) -> 1802.010666 | AC59: =SUM(AC56:AC58) -> 419.2786266 | AD59: =SUM(AD56:AD58) -> 2047.066236
A61: Tax Rate (to be entered)
A63: Income Taxes Payable | E63: =E59*E61 -> 0 | F63: =F59*F61 -> 0 | H63: =H59*H61 -> 0 | I63: =I59*I61 -> 0 | K63: =K59*K61 -> 0 | L63: =L59*L61 -> 0 | N63: =N59*N61 -> 0 | O63: =O59*O61 -> 0 | Q63: =Q59*Q61 -> 0 | R63: =R59*R61 -> 0 | T63: =T59*T61 -> 0 | U63: =U59*U61 -> 0 | W63: =W59*W61 -> 0 | X63: =X59*X61 -> 0 | Z63: =Z59*Z61 -> 0 | AA63: =AA59*AA61 -> 0 | AC63: =AC59*AC61 -> 0 | AD63: =AD59*AD61 -> 0
A64: Gross Up
A65: Income Taxes Payable | E65: =E63/(1-E61) -> 0 | F65: =F63/(1-F61) -> 0 | H65: =H63/(1-H61) -> 0 | I65: =I63/(1-I61) -> 0 | K65: =K63/(1-K61) -> 0 | L65: =L63/(1-L61) -> 0 | N65: =N63/(1-N61) -> 0 | O65: =O63/(1-O61) -> 0 | Q65: =Q63/(1-Q61) -> 0 | R65: =R63/(1-R61) -> 0 | T65: =T63/(1-T61) -> 0 | U65: =U63/(1-U61) -> 0 | W65: =W63/(1-W61) -> 0 | X65: =X63/(1-X61) -> 0 | Z65: =Z63/(1-Z61) -> 0 | AA65: =AA63/(1-AA61) -> 0 | AC65: =AC63/(1-AC61) -> 0 | AD65: =AD63/(1-AD61) -> 0
A66: Grossed Up PILs | E66: =SUM(E65:E65) -> 0 | F66: =SUM(F65:F65) -> 0 | H66: =SUM(H65:H65) -> 0 | I66: =SUM(I65:I65) -> 0 | K66: =SUM(K65:K65) -> 0 | L66: =SUM(L65:L65) -> 0 | N66: =SUM(N65:N65) -> 0 | O66: =SUM(O65:O65) -> 0 | Q66: =SUM(Q65:Q65) -> 0 | R66: =SUM(R65:R65) -> 0 | T66: =SUM(T65:T65) -> 0 | U66: =SUM(U65:U65) -> 0 | W66: =SUM(W65:W65) -> 0 | X66: =SUM(X65:X65) -> 0 | Z66: =SUM(Z65:Z65) -> 0 | AA66: =SUM(AA65:AA65) -> 0 | AC66: =SUM(AC65:AC65) -> 0 | AD66: =SUM(AD65:AD65) -> 0
A69: Net Fixed Assets | D69: 2011 | E69: 2012 | F69: 2013 | G69: 2014 | H69: 2015 | I69: 2016 | J69: 2017 | K69: 2018 | L69: 2019
B70: Enter applicable amortization in years: | C70: 25
A71: Opening Gross Fixed Assets | E71: =D73 -> 0 | F71: 117320.21 | G71: 117320.21 | H71: 117320.21 | I71: 117320.21 | J71: 117320.21 | K71: 117320.21 | L71: 117320.21
A72: Gross Capital Additions | D72: ='App.2-FA Proposed REG Invest.'!C99 -> 0 | E72: ='App.2-FA Proposed REG Invest.'!D99 -> 117320.21 | F72: ='App.2-FA Proposed REG Invest.'!E99 -> 0 | G72: ='App.2-FA Proposed REG Invest.'!F99 -> 0 | H72: ='App.2-FA Proposed REG Invest.'!G99 -> 0 | I72: ='App.2-FA Proposed REG Invest.'!H99 -> 0 | J72: ='App.2-FA Proposed REG Invest.'!I99 -> 0 | K72: ='App.2-FA Proposed REG Invest.'!J99 -> 0 | L72: ='App.2-FA Proposed REG Invest.'!K99 -> 0
A73: Closing Gross Fixed Assets | D73: =SUM(D71:D72) -> 0 | E73: 117320.21 | F73: 117320.21 | G73: 117320.21 | H73: 117320.21 | I73: 117320.21 | J73: 117320.21 | K73: 117320.21 | L73: 117320.21
A75: Opening Accumulated Amortization | E75: =+D78 -> 0 | F75: =E78 -> 2346.4042 | G75: 7039.2126 | H75: =G78 -> 11732.021 | I75: =H78 -> 16424.8294 | J75: =I78 -> 21117.6378 | K75: =J78 -> 25810.4462 | L75: =K78 -> 30503.2546
A76: Current Year Amortization (before additions) | E76: =IF(ISERROR(E71/$C$70), 0, E71/$C$70) -> 0 | F76: 4692.8084 | G76: 4692.8084 | H76: =H71/$C$70 -> 4692.8084 | I76: =I71/$C$70 -> 4692.8084 | J76: =J71/$C$70 -> 4692.8084 | K76: =K71/$C$70 -> 4692.8084 | L76: =L71/$C$70 -> 4692.8084
A77: Additions (half year) | D77: =D72/C70/2 -> 0 | E77: =E72/C70/2 -> 2346.4042 | F77: =F72/C70/2 -> 0 | G77: =G72/C70/2 -> 0 | H77: =H72/C70/2 -> 0 | I77: =I72/C70/2 -> 0 | J77: =J72/C70/2 -> 0 | K77: =K72/C70/2 -> 0 | L77: =L72/C70/2 -> 0
A78: Closing Accumulated Amortization | D78: =SUM(D75+D77) -> 0 | E78: =SUM(E75:E77) -> 2346.4042 | F78: 7039.2126 | G78: 11732.021 | H78: 16424.8294 | I78: 21117.6378 | J78: 25810.4462 | K78: 30503.2546 | L78: 35196.063
A80: Opening Net Fixed Assets | D80: =D71-D75 -> 0 | E80: =E71-E75 -> 0 | F80: =F71-F75 -> 114973.8058 | G80: =G71-G75 -> 110280.9974 | H80: =G81 -> 105588.189 | I80: =H81 -> 100895.3806 | J80: =I81 -> 96202.5722 | K80: =J81 -> 91509.7638 | L80: =K81 -> 86816.9554
A81: Closing Net Fixed Assets | D81: =D73-D78 -> 0 | E81: 114973.8058 | F81: 110280.9974 | G81: 105588.189 | H81: 100895.3806 | I81: 96202.5722 | J81: 91509.7638 | K81: 86816.9554 | L81: 82124.147
A82: Average Net Fixed Assets | D82: =SUM(D80:D81)/2 -> 0 | E82: 57486.9029 | F82: 112627.4016 | G82: 107934.5932 | H82: 103241.7848 | I82: 98548.9764 | J82: 93856.168 | K82: 89163.3596 | L82: 84470.5512
A84: UCC for PILs Calculation
D85: 2014 | E85: 2014 | F85: 2014 | G85: 2014 | H85: 2015 | I85: 2016 | J85: 2017 | K85: 2018 | L85: 2019
A87: Opening UCC | E87: =D95 -> 0 | F87: 112627.4016 | G87: 103617.2095 | H87: 95327.83271 | I87: 87701.6061 | J87: 80685.47761 | K87: 74230.6394 | L87: 68292.18825
A88: Capital Additions (from Appendix 2-FA) | D88: =D72 -> 0 | E88: 117320.21 | F88: 0 | G88: 0 | H88: 0 | I88: 0 | J88: 0 | K88: 0 | L88: 0
A89: UCC Before Half Year Rule | D89: =SUM(D87:D88) -> 0 | E89: 117320.21 | F89: 112627.4016 | G89: 103617.2095 | H89: 95327.83271 | I89: 87701.6061 | J89: 80685.47761 | K89: 74230.6394 | L89: 68292.18825
A90: Half Year Rule (1/2 Additions - Disposals) | D90: =D88/2 -> 0 | E90: 58660.105 | F90: 0 | G90: 0 | H90: 0 | I90: 0 | J90: 0 | K90: 0 | L90: 0
A91: Reduced UCC | D91: =D89-D90 -> 0 | E91: 58660.105 | F91: 112627.4016 | G91: 103617.2095 | H91: 95327.83271 | I91: 87701.6061 | J91: 80685.47761 | K91: 74230.6394 | L91: 68292.18825
A92: CCA Rate Class (to be entered) | C92: 47 | D92: =$C$92 -> 47 | E92: =$C$92 -> 47 | F92: 47 | G92: 47 | H92: 47 | I92: 47 | J92: 47 | K92: 47 | L92: 47
A93: CCA Rate (to be entered) | C93: 0.08 | D93: =$C$93 -> 0.08 | E93: =$C$93 -> 0.08 | F93: 0.08 | G93: 0.08 | H93: 0.08 | I93: 0.08 | J93: 0.08 | K93: 0.08 | L93: 0.08
A94: CCA | D94: =D91*D$93 -> 0 | E94: =E91*E$93 -> 4692.8084 | F94: =F91*F$93 -> 9010.192128 | G94: =G91*G$93 -> 8289.376758 | H94: =H91*H$93 -> 7626.226617 | I94: 7016.128488 | J94: 6454.838209 | K94: 5938.451152 | L94: 5463.37506
A95: Closing UCC | D95: =D89-D94 -> 0 | E95: 112627.4016 | F95: 103617.2095 | G95: 95327.83271 | H95: 87701.6061 | I95: 80685.47761 | J95: 74230.6394 | K95: 68292.18825 | L95: 62828.81319

Sheet App.2-W_Bill Impacts_hidden (hidden)
D2: Customer Class:
D3: RPP / Non-RPP:
D4: Consumption | F4: kWh
D5: Demand | F5: kW
D6: Current Loss Factor
D7: Proposed/Approved Loss Factor
D8: Ontario Clean Energy Benefit Applied?
F10: Current Board-Approved | I10: Proposed | L10: Impact
E11: Charge Unit | F11: Rate | G11: Volume | H11: Charge | I11: Rate | J11: Volume | K11: Charge | L11: $ Change | M11: % Change
F12: ($) | H12: ($) | I12: ($) | K12: ($)
A13: =$E2 -> 0 | D13: Monthly Service Charge | G13: 1 | H13: =G13*F13 -> 0 | J13: 1 | K13: =J13*I13 -> 0 | L13: =K13-H13 -> 0 | M13: =IF(ISERROR(L13/H13), "", L13/H13) -> 
A14: =A13 -> 0 | D14: Smart Meter Rate Adder | G14: 1 | H14: =G14*F14 -> 0 | J14: 1 | K14: =J14*I14 -> 0 | L14: 0 | M14: =IF(ISERROR(L14/H14), "", L14/H14) -> 
A15: =A14 -> 0 | G15: 1 | H15: 0 | J15: 1 | K15: =J15*I15 -> 0 | L15: 0
A16: 0 | G16: 1 | H16: 0 | J16: 1 | K16: 0 | L16: 0
A17: 0 | G17: 1 | H17: 0 | J17: 1 | K17: 0 | L17: 0
A18: 0 | G18: 1 | H18: 0 | J18: 1 | K18: 0 | L18: 0
A19: 0 | D19: Distribution Volumetric Rate | G19: =IF($E5>0, $E5, $E4) -> 0 | H19: 0 | J19: =IF($E5>0, $E5, $E4) -> 0 | K19: 0 | L19: 0
A20: 0 | D20: Smart Meter Disposition Rider | G20: =IF($E5>0, $E5, $E4) -> 0 | H20: 0 | J20: =IF($E5>0, $E5, $E4) -> 0 | K20: 0 | L20: 0
A21: 0 | D21: LRAM & SSM Rate Rider | G21: =IF($E5>0, $E5, $E4) -> 0 | H21: 0 | J21: =IF($E5>0, $E5, $E4) -> 0 | K21: 0 | L21: 0
A22: 0 | G22: =IF($E5>0, $E5, $E4) -> 0 | H22: 0 | J22: =IF($E5>0, $E5, $E4) -> 0 | K22: 0 | L22: 0
A23: 0 | G23: =IF($E5>0, $E5, $E4) -> 0 | H23: 0 | J23: =IF($E5>0, $E5, $E4) -> 0 | K23: 0 | L23: 0
A24: 0 | G24: =IF($E5>0, $E5, $E4) -> 0 | H24: 0 | J24: =IF($E5>0, $E5, $E4) -> 0 | K24: 0 | L24: 0
A25: 0 | G25: =IF($E5>0, $E5, $E4) -> 0 | H25: 0 | J25: =IF($E5>0, $E5, $E4) -> 0 | K25: 0 | L25: 0
A26: 0 | G26: =IF($E5>0, $E5, $E4) -> 0 | H26: 0 | J26: =IF($E5>0, $E5, $E4) -> 0 | K26: 0 | L26: 0
A27: 0 | G27: =IF($E5>0, $E5, $E4) -> 0 | H27: 0 | J27: =IF($E5>0, $E5, $E4) -> 0 | K27: 0 | L27: 0
A28: 0 | G28: =IF($E5>0, $E5, $E4) -> 0 | H28: 0 | J28: =IF($E5>0, $E5, $E4) -> 0 | K28: 0 | L28: 0
A29: 0 | B29: ST_A | D29: Sub-Total A (excluding pass through) | H29: =SUM(H13:H28) -> 0 | K29: =SUM(K13:K28) -> 0 | L29: 0 | M29: =IF((H29)=0,"",(L29/H29)) -> 
A30: 0 | D30: Deferral/Variance Account Disposition Rate Rider | G30: =IF($E5>0, $E5, $E4) -> 0 | H30: =G30*F30 -> 0 | J30: =IF($E5>0, $E5, $E4) -> 0 | K30: =J30*I30 -> 0 | L30: 0
A31: 0 | G31: =IF($E5>0, $E5, $E4) -> 0 | H31: =G31*F31 -> 0 | J31: =IF($E5>0, $E5, $E4) -> 0 | K31: =J31*I31 -> 0 | L31: 0
A32: 0 | G32: =IF($E5>0, $E5, $E4) -> 0 | H32: 0 | J32: =IF($E5>0, $E5, $E4) -> 0 | K32: 0 | L32: 0
A33: 0 | G33: =IF($E5>0, $E5, $E4) -> 0 | H33: 0 | J33: =IF($E5>0, $E5, $E4) -> 0 | K33: 0 | L33: 0
A34: 0 | D34: Low Voltage Service Charge | G34: =IF($E5>0, $E5, $E4) -> 0 | H34: =G34*F34 -> 0 | J34: =IF($E5>0, $E5, $E4) -> 0 | K34: =J34*I34 -> 0 | L34: 0
A35: 0 | D35: Line Losses on Cost of Power | F35: =IF((E4*12>=150000), 0, IF(E3="RPP",(F46*0.64+F47*0.18+F48*0.18),IF(E3="Non-RPP (Retailer)",F49,F50))) -> 0.0906 | G35: =IF(F35=0, 0, $E4*E6-E4) -> 0 | H35: 0 | I35: =IF((E4*12>=150000), 0, IF(E3="RPP",(I46*0.64+I47*0.18+I48*0.18),IF(E3="Non-RPP (Retailer)",I49,I50))) -> 0.0906 | J35: =IF(I35=0, 0, E4*E7-E4) -> 0 | K35: 0 | L35: 0
A36: 0 | D36: Smart Meter Entity Charge | F36: 0.79 | G36: 1 | H36: =G36*F36 -> 0.79 | I36: 0.79 | J36: 1 | K36: =J36*I36 -> 0.79 | L36: 0 | M36: 0
A37: 0 | B37: ST_B | D37: Sub-Total B - Distribution (includes Sub-Total A) | H37: =SUM(H30:H36)+H29 -> 0.79 | K37: =SUM(K30:K36)+K29 -> 0.79 | L37: 0 | M37: =IF((H37)=0,"",(L37/H37)) -> 0
A38: 0 | D38: RTSR - Network | G38: =IF($E5>0, $E5, $E4*$E6) -> 0 | H38: =G38*F38 -> 0 | J38: =IF($E5>0, $E5, $E4*$E7) -> 0 | K38: =J38*I38 -> 0 | L38: 0
A39: 0 | D39: RTSR - Line and Transformation Connection | G39: =IF($E5>0, $E5, $E4*$E6) -> 0 | H39: =G39*F39 -> 0 | J39: =IF($E5>0, $E5, $E4*$E7) -> 0 | K39: =J39*I39 -> 0 | L39: 0
A40: 0 | B40: ST_C | D40: Sub-Total C - Delivery (including Sub-Total B) | H40: =SUM(H37:H39) -> 0.79 | K40: =SUM(K37:K39) -> 0.79 | L40: 0 | M40: =IF((H40)=0,"",(L40/H40)) -> 0
A41: 0 | D41: Wholesale Market Service Charge (WMSC) | G41: =E4*E6 -> 0 | H41: =G41*F41 -> 0 | J41: =E4*E7 -> 0 | K41: =J41*I41 -> 0 | L41: 0
A42: 0 | D42: Rural and Remote Rate Protection (RRRP) | G42: =E4*E6 -> 0 | H42: 0 | J42: =E4*E7 -> 0 | K42: 0 | L42: 0
A43: 0 | D43: Standard Supply Service Charge | G43: 1 | H43: 0 | J43: 1 | K43: 0 | L43: 0
A44: 0 | D44: Debt Retirement Charge (DRC) | G44: =E4 -> 0 | H44: 0
A45: 0 | D45: Ontario Electricity Support Program (OESP) | J45: =E4*E7 -> 0 | K45: =J45*I45 -> 0 | M45: =IF(ISERROR(L45/H45), "", L45/H45) -> 
A46: =A44 -> 0 | B46: RPP | D46: TOU - Off Peak | F46: 0.08 | G46: =IF(AND(E4*12>=150000),0.64*E4*E6,0.64*E4) -> 0 | H46: 0 | I46: 0.08 | J46: =IF(AND(E4*12>=150000),0.64*E4*E7,0.64*E4) -> 0 | K46: 0 | L46: =K46-H46 -> 0
A47: 0 | B47: RPP | D47: TOU - Mid Peak | F47: 0.122 | G47: =IF(AND(E4*12>=150000),0.18*E4*E6,0.18*E4) -> 0 | H47: 0 | I47: 0.122 | J47: =IF(AND(E4*12>=150000),0.18*E4*E7,0.18*E4) -> 0 | K47: 0 | L47: =K47-H47 -> 0
A48: 0 | B48: RPP | D48: TOU - On Peak | F48: 0.161 | G48: =IF(AND(E4*12>=150000),0.18*E4*E6,0.18*E4) -> 0 | H48: 0 | I48: 0.161 | J48: =IF(AND(E4*12>=150000),0.18*E4*E7,0.18*E4) -> 0 | K48: 0 | L48: =K48-H48 -> 0
A49: 0 | B49: Non-RPP (Retailer) | D49: Non-RPP Retailer Avg. Price | F49: 0.086 | G49: =IF(AND(E4*12>=150000),E4*E6,E4) -> 0 | H49: =G49*F49 -> 0 | I49: 0.086 | J49: =IF(AND(E4*12>=150000),E4*E7,E4) -> 0 | K49: =J49*I49 -> 0 | L49: =K49-H49 -> 0
A50: 0 | B50: Non-RPP (Other) | D50: Average IESO Wholesale Market Price | F50: =0.0906 -> 0.0906 | G50: =IF(AND(E4*12>=150000),E4*E6,E4) -> 0 | H50: =G50*F50 -> 0 | I50: =0.0906 -> 0.0906 | J50: =IF(AND(E4*12>=150000),E4*E7,E4) -> 0 | K50: =J50*I50 -> 0 | L50: =K50-H50 -> 0
A51: 0
A52: 0 | B52: RPP | D52: Total Bill on TOU (before Taxes) | H52: =SUM(H41:H48,H40) -> 0.79 | K52: =SUM(K41:K48,K40) -> 0.79 | L52: =K52-H52 -> 0 | M52: =IF((H52)=0,"",(L52/H52)) -> 0
A53: 0 | B53: RPP | D53: HST | F53: 0.13 | H53: =H52*F53 -> 0.1027 | I53: 0.13 | K53: =K52*I53 -> 0.1027 | L53: =K53-H53 -> 0 | M53: =IF((H53)=0,"",(L53/H53)) -> 0
A54: 0 | B54: RPP | D54: Total Bill (including HST) | H54: =H52+H53 -> 0.8927 | K54: =K52+K53 -> 0.8927 | L54: =K54-H54 -> 0 | M54: =IF((H54)=0,"",(L54/H54)) -> 0
A55: 0 | B55: RPP | D55: Ontario Clean Energy Benefit 1 | H55: =ROUND(-H54*10%,2) -> -0.09
A56: 0 | B56: RPP_TOTAL | D56: Total Bill on TOU | H56: =H54+H55 -> 0.8027 | K56: =K54+K55 -> 0.8927 | L56: =K56-H56 -> 0.09 | M56: =IF((H56)=0,"",(L56/H56)) -> 0.1121215896
A57: 0 | B57: RPP
A58: 0 | B58: Non-RPP (Retailer) | D58: Total Bill on Non-RPP Avg. Price | H58: =SUM(H49,H40,H41:H46) -> 0.79 | K58: =SUM(K49,K40,K41:K46) -> 0.79 | L58: =K58-H58 -> 0 | M58: =IF((H58)=0,"",(L58/H58)) -> 0
A59: 0 | B59: Non-RPP (Retailer) | D59: HST | F59: 0.13 | H59: =H58*F59 -> 0.1027 | I59: 0.13 | K59: =K58*I59 -> 0.1027 | L59: =K59-H59 -> 0 | M59: =IF((H59)=0,"",(L59/H59)) -> 0
A60: 0 | B60: Non-RPP (Retailer) | D60: Total Bill (including HST) | H60: =H58+H59 -> 0.8927 | K60: =K58+K59 -> 0.8927 | L60: =K60-H60 -> 0 | M60: =IF((H60)=0,"",(L60/H60)) -> 0
A61: 0 | B61: Non-RPP (Retailer) | D61: Ontario Clean Energy Benefit 1 | H61: =ROUND(-H60*10%,2) -> -0.09
A62: 0 | B62: Non-RPP (Retailer)_TOTAL | D62: Total Bill on Non-RPP Avg. Price | H62: =SUM(H60:H61) -> 0.8027 | K62: =SUM(K60:K61) -> 0.8927 | L62: =K62-H62 -> 0.09 | M62: =IF((H62)=0,"",(L62/H62)) -> 0.1121215896
A63: 0 | B63: Non-RPP (Retailer)
A64: 0 | B64: Non-RPP (Other) | D64: Total Bill on Average IESO Wholesale Market Price | H64: =SUM(H50,H40:H44) -> 0.79 | K64: =SUM(K50,K40:K44) -> 0.79 | L64: =K64-H64 -> 0 | M64: =IF((H64)=0,"",(L64/H64)) -> 0
A65: 0 | B65: Non-RPP (Other) | D65: HST | F65: 0.13 | H65: =H64*F65 -> 0.1027 | I65: 0.13 | K65: =K64*I65 -> 0.1027 | L65: =K65-H65 -> 0 | M65: =IF((H65)=0,"",(L65/H65)) -> 0
A66: 0 | B66: Non-RPP (Other) | D66: Total Bill (including HST) | H66: =H64+H65 -> 0.8927 | K66: =K64+K65 -> 0.8927 | L66: =K66-H66 -> 0 | M66: =IF((H66)=0,"",(L66/H66)) -> 0
A67: 0 | B67: Non-RPP (Other) | D67: Ontario Clean Energy Benefit 1 | H67: =IF(E8="Yes", ROUND(-H66*10%,2), 0) -> 0
A68: 0 | B68: Non-RPP (Other)_TOTAL | D68: Total Bill on Average IESO Wholesale Market Price | H68: =SUM(H66:H67) -> 0.8927 | K68: =SUM(K66:K67) -> 0.8927 | L68: =K68-H68 -> 0 | M68: =IF((H68)=0,"",(L68/H68)) -> 0
A69: 0 | B69: Non-RPP (Other)

Sheet lists (hidden)
B1: Embedded Distributor | C1: =COUNTA(B1:B17) -> 4 | I1: A Standby Service Charge will be applied for a month where standby power is not provided. The applicable rate is the approved Distribution Volumetric Rate of the applicable service class and is applied to gross metered demand or contracted amount, whichever is greater. A monthly administration charge of $200, for simple metering arrangements, or $500, for complex metering arrangements, will also be applied. | L1: Loss Factors | N1: Units | O1: Units1 | P1: Units2 | Z1: Account History | AA1: Account set up charge/change of occupancy charge (plus credit agency costs if applicable) | AB1: Total Loss Factor – Embedded Distributor – Hydro One Networks Inc. | AL1: Algoma Power Inc. | AM1: Algoma Power Inc. | AO1: DISTRIBUTED GENERATION [DGEN] | AP1: kW | AT1: Sub-Total: Delivery (Distribution and Retail Transmission)
A2: DISTRIBUTED GENERATION [DGEN] | B2: General Service 3,000 to 4,999 kW | I2: Distribution Volumetric Rate | L2: Total Loss Factor – Primary Metered Customer | N2: $ | O2: $/kWh | P2: $ | Z2: Account set up charge/change of occupancy charge | AA2: Administrative Billing Charge | AB2: Total Loss Factor – Primary Metered Customer | AL2: Atikokan Hydro Inc. | AM2: Atikokan Hydro Inc. | AO2: EMBEDDED DISTRIBUTOR | AP2: kW | AT2: Wholesale Market Service Rate | AW2: =AU2*AV2 -> 0 | AX2: =AU2 -> 0 | AY2: 0 | AZ2: =AX2*AY2 -> 0 | BB2: =AZ2-AW2 -> 0 | BC2: =BB2/AW2 -> 
A3: EMBEDDED DISTRIBUTOR | B3: General Service 1,000 to 4,999 kW | I3: Distribution Volumetric Rate - $/kW of contracted amount | L3: Total Loss Factor – Primary Metered Customer < 5,000 kW | N3: $/kWh | O3: $/kW | P3: % | W3: MSC | Z3: Account set up charge/change of occupancy charge (plus credit agency costs if applicable – Residential) | AA3: Bell Canada Pole Rentals | AB3: Total Loss Factor – Primary Metered Customer < 5,000 kW | AL3: Attawapiskat Power Corp. | AM3: Attawapiskat Power Corp. | AO3: EMBEDDED DISTRIBUTOR | AP3: kW | AT3: Rural Rate Protection Charge | AW3: =AU3*AV3 -> 0 | AX3: 0 | AY3: 0 | AZ3: =AX3*AY3 -> 0 | BB3: =AZ3-AW3 -> 0 | BC3: =BB3/AW3 -> 
A4: EMBEDDED DISTRIBUTOR | B4: General Service Equal To Or Greater Than 1,500 kW - Interval Metered | I4: Distribution Wheeling Service Rate | L4: Total Loss Factor – Primary Metered Customer > 5,000 kW | N4: $/kW | O4: $/kVA | W4: SM_Rate_Adder | Z4: Account set up charge/change of occupancy charge (plus credit agency costs if applicable) | AA4: Clearance Pole Attachment charge $/pole/year | AB4: Total Loss Factor – Primary Metered Customer > 5,000 kW | AL4: Bluewater Power Distribution Corporation | AM4: Bluewater Power Distribution Corporation | AO4: FARMS - SINGLE PHASE ENERGY-BILLED [F1] | AP4: kWh | AT4: Standard Supply Service – Administration Charge (if applicable) | AW4: =AU4*AV4 -> 0 | AX4: 0 | AY4: 0 | AZ4: =AX4*AY4 -> 0 | BB4: =AZ4-AW4 -> 0 | BC4: =BB4/AW4 -> 
A5: FARMS - SINGLE PHASE ENERGY-BILLED [F1] | I5: Electricity Rate | L5: Total Loss Factor – Secondary Metered Customer | N5: $/kVA | W5: MSC_Rate_Rider_ | Z5: Arrears certificate | AA5: Collection of account charge – no disconnection | AB5: Total Loss Factor – Secondary Metered Customer | AL5: Brant County Power Inc. | AM5: Brant County Power Inc. | AO5: FARMS - THREE PHASE ENERGY-BILLED [F3] | AP5: kWh | AT5: Sub-Total: Regulatory | AW5: =SUM(AW2:AW4) -> 0 | AZ5: =SUM(AZ2:BA4) -> 0 | BB5: =AZ5-AW5 -> 0 | BC5: =BB5/AW5 -> 
A6: FARMS - THREE PHASE ENERGY-BILLED [F3] | I6: Electricity Rate - All Additional kWh | L6: Total Loss Factor – Secondary Metered Customer < 5,000 kW | W6: VC | Z6: Arrears certificate (credit reference) | AA6: Collection of account charge – no disconnection – after regular hours | AB6: Total Loss Factor – Secondary Metered Customer < 5,000 kW | AL6: Brantford Power Inc. | AM6: Brantford Power Inc. | AO6: GENERAL SERVICE - COMMERCIAL | AP6: kW | AT6: Debt Retirement Charge (DRC) | AW6: =AU6*AV6 -> 0 | AX6: =AU6 -> 0 | AY6: =AV6 -> 0 | AZ6: =AX6*AY6 -> 0 | BB6: =AZ6-AW6 -> 0 | BC6: =BB6/AW6 -> 
A7: GENERAL SERVICE - COMMERCIAL | I7: Electricity Rate - First 250 kWh | AL7: Burlington Hydro Inc. | AM7: Burlington Hydro Inc. | AO7: GENERAL SERVICE - INSTITUTIONAL | AP7: kW
A8: GENERAL SERVICE - INSTITUTIONAL | I8: Electricity Rate -All Additional kWh | L8: Total Loss Factor – Secondary Metered Customer > 5,000 kW | W8: VC_Rate_Rider_ | Z8: Charge to certify cheque | AA8: Collection of account charge – no disconnection - during regular business hours | AB8: Total Loss Factor – Secondary Metered Customer > 5,000 kW | AL8: Cambridge and North Dumfries Hydro Inc. | AM8: Cambridge and North Dumfries Hydro Inc. | AO8: GENERAL SERVICE 1,000 TO 2,999 KW | AP8: kW | AT8: Total Bill on RPP (before taxes) | BB8: =AZ8-AW8 -> 0
A9: GENERAL SERVICE 1,000 TO 2,999 KW | I9: Electricity Rate First 1,000 kWh | L9: Distribution Loss Factor - Secondary Metered Customer < 5,000 kW | W9: VC_GA_Rate_Rider_kW_ | Z9: Collection of Account Charge – No Disconnection | AA9: Collection of account charge – no disconnection – during regular hours | AL9: Canadian Niagara Power Inc. | AM9: Canadian Niagara Power Inc. - Eastern Ontario Power | AO9: GENERAL SERVICE 1,000 TO 4,999 KW - INTERVAL METERS | AP9: kW | AT9: HST | AW9: =AV9*AW8 -> 0 | AY9: =AV9 -> 0 | AZ9: =AY9*AZ8 -> 0 | BB9: =AZ9-AW9 -> 0 | BC9: =BB9/AW9 -> 
A10: GENERAL SERVICE 1,000 TO 4,999 KW | I10: Electricity Rate First 25,000 kWh | L10: Distribution Loss Factor - Secondary Metered Customer > 5,000 kW | W10: VC_LV_Rate | Z10: Credit Card Convenience Charge | AA10: Collection/Disconnection/Load Limiter/Reconnection – if in Community | AL10: Centre Wellington Hydro Ltd. | AM10: Canadian Niagara Power Inc. - Fort Erie | AO10: GENERAL SERVICE 1,000 TO 4,999 KW (CO-GENERATION) | AP10: kW | AT10: Total Bill (including HST) | AW10: =AW9+AW8 -> 0 | AZ10: =AZ9+AZ8 -> 0 | BB10: =AZ10-AW10 -> 0 | BC10: =BB10/AW10 -> 
A11: GENERAL SERVICE 1,000 TO 4,999 KW - INTERVAL METERS | I11: Electricity Rate First 6,000 kWh | L11: Distribution Loss Factor - Primary Metered Customer < 5,000 kW | W11: RTSR_Network | Z11: Credit check (plus credit agency costs) | AA11: Credit Card Convenience Charge | AL11: Chapleau Public Utilities Corporation | AM11: Canadian Niagara Power Inc. - Port Colborne Hydro Inc. | AO11: GENERAL SERVICE 1,000 TO 4,999 KW | AP11: kW | AT11: Ontario Clean Energy Benefit (OCEB) | AW11: =-0.1*AW10 -> 0 | AY11: =AV11 -> 0 | AZ11: =-0.1*AZ10 -> 0 | BB11: =AZ11-AW11 -> 0 | BC11: =BB11/AW11 -> 
A12: GENERAL SERVICE 1,000 TO 4,999 KW (CO-GENERATION) | I12: Electricity Rate Next 1,500 kWh | L12: Distribution Loss Factor - Primary Metered Customer > 5,000 kW | W12: RTSR_Connection | Z12: Credit reference Letter | AA12: Disconnect/Reconnect at meter – after regular hours | AL12: Clinton Power Corporation | AM12: Centre Wellington Hydro Ltd. | AO12: GENERAL SERVICE 1,500 TO 4,999 KW | AP12: kW | AT12: Total Bill on RPP (including OCEB) | AW12: =AW10+AW11 -> 0 | AZ12: =AZ10+AZ11 -> 0 | BB12: =AZ12-AW12 -> 0 | BC12: =BB12/AW12 -> 
A13: GENERAL SERVICE 1,500 TO 4,999 KW | I13: General Service 1,500 to 4,999 kW customer | AL13: COLLUS Power Corporation | AM13: Chapleau Public Utilities Corporation | AO13: GENERAL SERVICE 2,500 TO 4,999 KW | AP13: kW
A14: GENERAL SERVICE 2,500 TO 4,999 KW | I14: General Service 50 to 1,499 kW customer | L14: Total Loss Factor - Embedded Distributor | W14: RTSR_Network_Interval | Z14: Credit reference/credit check (plus credit agency costs – General Service) | AA14: Disconnect/Reconnect at meter – during regular hours | AL14: Cooperative Hydro Embrun Inc. | AM14: Clinton Power Corporation | AO14: GENERAL SERVICE 3,000 TO 4,999 KW - INTERMEDIATE USE | AP14: kW | AT14: Total Bill on TOU (before taxes) | BB14: =AZ14-AW14 -> 0
A15: GENERAL SERVICE 3,000 TO 4,999 KW | I15: General Service Large Use customer | L15: Total Loss Factor – Embedded Distributor – Hydro One Networks Inc. | W15: RTSR_Connection_Interval | Z15: Credit Reference/credit check (plus credit agency costs) | AA15: Disconnect/Reconnect at pole – after regular hours | AL15: E.L.K. Energy Inc. | AM15: COLLUS Power Corporation | AO15: GENERAL SERVICE 3,000 TO 4,999 KW - INTERVAL METERED | AP15: kW | AT15: HST | AW15: =AV15*AW14 -> 0 | AY15: =AV15 -> 0 | AZ15: =AY15*AZ14 -> 0 | BB15: =AZ15-AW15 -> 0 | BC15: =BB15/AW15 -> 
A16: GENERAL SERVICE 3,000 TO 4,999 KW - INTERMEDIATE USE | I16: Green Energy Act Initiatives Funding Adder - effective until the date of the next cost of service-based rate order | W16: RTSR_Network_Interval_GR1000kW | Z16: Dispute Test – Commercial self contained -- MC | AA16: Disconnect/Reconnect at pole – during regular hours | AL16: Enersource Hydro Mississauga Inc. | AM16: Cooperative Hydro Embrun Inc. | AO16: GENERAL SERVICE 3,000 TO 4,999 KW - TIME OF USE | AP16: kW | AT16: Total Bill (including HST) | AW16: =AW15+AW14 -> 0 | AZ16: =AZ15+AZ14 -> 0 | BB16: =AZ16-AW16 -> 0 | BC16: =BB16/AW16 -> 
A17: GENERAL SERVICE 3,000 TO 4,999 KW - INTERVAL METERED | I17: Green Energy Act Plan Funding Adder | W17: RTSR_Connection_Interval_GR1000kW | Z17: Dispute Test – Commercial TT -- MC | AA17: Disconnect/Reconnect Charge – At Meter – After Hours | AL17: Entegrus Powerlines Inc. | AM17: E.L.K. Energy Inc. | AO17: GENERAL SERVICE 3,000 TO 4,999 KW | AP17: kW | AT17: Ontario Clean Energy Benefit (OCEB) | AW17: =-0.1*AW16 -> 0 | AY17: =AV17 -> 0 | AZ17: =-0.1*AZ16 -> 0 | BB17: =AZ17-AW17 -> 0 | BC17: =BB17/AW17 -> 
A18: GENERAL SERVICE 3,000 TO 4,999 KW - TIME OF USE | I18: Green Energy Act Plan Funding Adder - effective April 1, 2013 until March 31, 2014 | W18: RTSR_Line_Connection | Z18: Dispute Test – Residential | AA18: Disconnect/Reconnect Charge – At Meter – During Regular Hours | AL18: ENWIN Utilities Ltd. | AM18: Enersource Hydro Mississauga Inc. | AO18: GENERAL SERVICE 50 TO 1,000 KW - INTERVAL METERS | AP18: kW | AT18: Total Bill on TOU (including OCEB) | AW18: =AW16+AW17 -> 0 | AZ18: =AZ16+AZ17 -> 0 | BB18: =AZ18-AW18 -> 0 | BC18: =BB18/AW18 -> 
A19: GENERAL SERVICE 50 TO 1,000 KW | I19: Green Energy Act Plan Funding Adder - effective April 1, 2014 until March 31, 2015 | W19: RTSR_Transformer_Connection | Z19: Duplicate Invoices for previous billing | AA19: Disconnect/Reconnect Charge – At Pole – After Hours | AL19: Erie Thames Powerlines Corporation | AM19: Entegrus Powerlines Inc. - Chatham-Kent | AO19: GENERAL SERVICE 50 TO 1,000 KW - NON INTERVAL METERS | AP19: kW
A20: GENERAL SERVICE 50 TO 1,000 KW - INTERVAL METERS | I20: ICM Rate Rider (2014) - in effect until the effective date of the next cost of service rates | W20: WMSR | Z20: Easement Letter | AA20: Disconnect/Reconnect Charge – At Pole – During Regular Hours | AL20: Espanola Regional Hydro Distribution Corporation | AM20: Entegrus Powerlines Inc. - Dutton | AO20: GENERAL SERVICE 50 TO 1,000 KW | AP20: kW
A21: GENERAL SERVICE 50 TO 1,000 KW - NON INTERVAL METERS | I21: Low Voltage Service Charge | W21: RRRP | Z21: Income Tax Letter | AA21: Disconnect/Reconnect Charges for non payment of account - At Meter After Hours | AL21: Essex Powerlines Corporation | AM21: Entegrus Powerlines Inc. - Newbury | AO21: GENERAL SERVICE 50 TO 1,499 KW - INTERVAL METERED | AP21: kW
A22: GENERAL SERVICE 50 TO 1,499 KW | I22: Low Voltage Service Rate | W22: SPC | Z22: Interval Meter Interrogation | AA22: Disconnect/Reconnect charges for non payment of account – at meter after regular hours | AL22: Festival Hydro Inc. | AM22: Entegrus Powerlines Inc. - Strathroy, Mounth Brydges & Parkhill | AO22: GENERAL SERVICE 50 TO 1,499 KW | AP22: kW
A23: GENERAL SERVICE 50 TO 1,499 KW - INTERVAL METERED | I23: Low Voltage Volumetric Rate | W23: DRC | Z23: Interval meter request change | AA23: Disconnect/Reconnect Charges for non payment of account - At Meter During Regular Hours | AL23: Fort Albany Power Corporation | AM23: ENWIN Utilities Ltd. | AO23: GENERAL SERVICE 50 TO 2,499 KW | AP23: kW
A24: GENERAL SERVICE 50 TO 2,499 KW | I24: LRAM Rate Rider - Effective Until April 30, 2015 | W24: SSS | Z24: Legal letter | AA24: Disconnect/Reconnect charges for non payment of account – at meter during regular hours | AL24: Fort Frances Power Corporation | AM24: Erie Thames Powerlines Corporation | AO24: GENERAL SERVICE 50 TO 2,999 KW - INTERVAL METERED | AP24: kW
A25: GENERAL SERVICE 50 TO 2,999 KW | I25: Minimum Distribution Charge - per KW of maximum billing demand in the previous 11 months | W25: SFLF | Z25: Legal letter charge | AA25: Disconnect/Reconnect charges for non payment of account – at pole after regular hours | AL25: Greater Sudbury Hydro Inc. | AM25: Espanola Regional Hydro Distribution Corporation | AO25: GENERAL SERVICE 50 TO 2,999 KW - TIME OF USE | AP25: kW
A26: GENERAL SERVICE 50 TO 2,999 KW - INTERVAL METERED | B26: January | I26: Monthly Distribution Wheeling Service Rate - Dedicated LV Line | W26: DLF_Secondary_LT_5000kW | Z26: Meter dispute charge plus Measurement Canada fees (if meter found correct) | AA26: Disconnect/Reconnect charges for non payment of account – at pole during regular hours | AL26: Grimsby Power Inc. | AM26: Essex Powerlines Corporation | AO26: GENERAL SERVICE 50 TO 2,999 KW | AP26: kW
A27: GENERAL SERVICE 50 TO 2,999 KW - TIME OF USE | B27: February | I27: Monthly Distribution Wheeling Service Rate - Hydro One Networks | W27: DLF_Secondary_GT_5000kW | Z27: Notification charge | AA27: Disconnect/Reconnection for >300 volts - after regular hours | AL27: Guelph Hydro Electric Systems Inc. | AM27: Festival Hydro Inc. | AO27: GENERAL SERVICE 50 TO 4,999 KW - INTERVAL METERED | AP27: kW
A28: GENERAL SERVICE 50 TO 4,999 KW | B28: March | I28: Monthly Distribution Wheeling Service Rate - Shared LV Line | W28: DLF_Primary_LT_5000kW | Z28: Pulling Post Dated Cheques | AA28: Disconnect/Reconnection for >300 volts - during regular hours | AL28: Haldimand County Hydro Inc. | AM28: Festival Hydro Inc. - Hensall | AO28: GENERAL SERVICE 50 TO 4,999 KW - TIME OF USE | AP28: kW
A29: GENERAL SERVICE 50 TO 4,999 KW - INTERVAL METERED | B29: April | I29: Monthly Distribution Wheeling Service Rate - Waterloo North Hydro | W29: DLF_Primary_GT_5000kW | Z29: Request for other billing information | AA29: Disposal of Concrete Poles | AL29: Halton Hills Hydro Inc. | AM29: Fort Albany Power Corporation | AO29: GENERAL SERVICE 50 TO 4,999 KW (COGENERATION) | AP29: kW
A30: GENERAL SERVICE 50 TO 4,999 KW - TIME OF USE | B30: May | I30: Rate Rider for Application of Tax Change - effective until April 30, 2015 | W30: TLF_Secondary_LT_5000kW | Z30: Returned cheque (plus bank charges) | AA30: Dispute Test – Commercial TT -- MC | AL30: Hearst Power Distribution Company Limited | AM30: Fort Frances Power Corporation | AO30: GENERAL SERVICE 50 TO 4,999 KW (FORMERLY TIME OF USE) | AP30: kW
A31: GENERAL SERVICE 50 TO 4,999 KW (COGENERATION) | B31: June | I31: Rate Rider for Application of Tax Change - effective until December 31, 2014 | W31: TLF_Secondary_GT_5000kW | Z31: Returned cheque charge (plus bank charges) | AA31: Install/Remove load control device – after regular hours | AL31: Horizon Utilities Corporation | AM31: Greater Sudbury Hydro Inc. | AO31: GENERAL SERVICE 50 TO 4,999 KW | AP31: kW
A32: GENERAL SERVICE 50 TO 4,999 KW (FORMERLY TIME OF USE) | B32: July | I32: Rate Rider for Application of Tax Change (2014) - effective until April 30, 2015 | W32: TLF_Primary_LT_5000kW | Z32: Special Billing Service (aggregation) | AA32: Install/Remove load control device – during regular hours | AL32: Hydro 2000 Inc. | AM32: Grimsby Power Inc. | AO32: GENERAL SERVICE 50 TO 499 KW | AP32: kW
A33: GENERAL SERVICE 50 TO 499 KW | B33: August | I33: Rate Rider for Application of Tax Change (per connection) - effective until April 30, 2015 | W33: TLF_Primary_GT_5000kW | Z33: Special Billing Service (sub-metering charge per meter) | AA33: Interval Meter Interrogation | AL33: Hydro Hawkesbury Inc. | AM33: Guelph Hydro Electric Systems Inc. | AO33: GENERAL SERVICE 50 TO 699 KW | AP33: kW
A34: GENERAL SERVICE 50 TO 699 KW | B34: September | I34: Rate Rider for CGAAP Accounting Changes (2013) - effective until April 30, 2017 | W34: TLF_EmbeddedDistributor | Z34: Special meter reads | AA34: Interval Meter Load Management Tool Charge $/month | AL34: Hydro One Brampton Networks Inc. | AM34: Haldimand County Hydro Inc. | AO34: GENERAL SERVICE 50 TO 999 KW - INTERVAL METERED | AP34: kW
A35: GENERAL SERVICE 50 TO 999 KW | B35: October | I35: Rate Rider for Deferral/Variance Account (2012) - effective unitl April 30, 2016 | Z35: Statement of Account | AA35: Interval meter request change | AL35: Hydro One Networks Inc. | AM35: Halton Hills Hydro Inc. | AO35: GENERAL SERVICE 50 TO 999 KW | AP35: kW
A36: GENERAL SERVICE 50 TO 999 KW - INTERVAL METERED | B36: November | I36: Rate Rider for Deferral/Variance Account Disposition – effective until April 30, 2015 | Z36: Unprocessed Payment Charge (plus bank charges) | AA36: Late Payment – per annum | AL36: Hydro Ottawa Limited | AM36: Hearst Power Distribution Company Limited | AO36: GENERAL SERVICE 500 TO 4,999 KW | AP36: kW
A37: GENERAL SERVICE 500 TO 4,999 KW | B37: December | I37: Rate Rider for Deferral/Variance Account Disposition (2012) - effective until April 30, 2016 | AA37: Late Payment – per month | AL37: Innisfil Hydro Distribution Systems Limited | AM37: Horizon Utilities Corporation | AO37: GENERAL SERVICE 700 TO 4,999 KW | AP37: kW
A38: GENERAL SERVICE 700 TO 4,999 KW | I38: Rate Rider for Deferral/Variance Account Disposition (2013) - effective until April 30, 2014 | AA38: Layout fees | AL38: Kashechewan Power Corporation | AM38: Hydro 2000 Inc. | AO38: GENERAL SERVICE DEMAND BILLED (50 KW AND ABOVE) [GSD] | AP38: kW
A39: GENERAL SERVICE DEMAND BILLED (50 KW AND ABOVE) [GSD] | I39: Rate Rider for Deferral/Variance Account Disposition (2014) - effective until April 28, 2016 | AA39: Meter dispute charge plus Measurement Canada fees (if meter found correct) | AL39: Kenora Hydro Electric Corporation Ltd. | AM39: Hydro Hawkesbury Inc. | AO39: GENERAL SERVICE ENERGY BILLED (LESS THAN 50 KW) [GSE-METERED] | AP39: kWh
A40: GENERAL SERVICE ENERGY BILLED (LESS THAN 50 KW) [GSE-METERED] | I40: Rate Rider for Deferral/Variance Account Disposition (2014) - effective until April 30, 2015 | AA40: Meter Interrogation Charge | AL40: Kingston Hydro Corporation | AM40: Hydro One Brampton Networks Inc. | AO40: GENERAL SERVICE ENERGY BILLED (LESS THAN TO 50 KW) [GSE-UNMETERED] | AP40: kWh
A41: GENERAL SERVICE ENERGY BILLED (LESS THAN TO 50 KW) [GSE-UNMETERED] | I41: Rate Rider for Deferral/Variance Account Disposition (2014) - effective until Decembeer 31, 2015 | AA41: Missed Service Appointment | AL41: Kitchener-Wilmot Hydro Inc. | AM41: Hydro One Networks Inc. | AO41: GENERAL SERVICE EQUAL TO OR GREATER THAN 1,500 KW - INTERVAL METERED | AP41: kW
A42: GENERAL SERVICE EQUAL TO OR GREATER THAN 1,500 KW | I42: Rate Rider for Deferral/Variance Account Disposition (2014) - effective until December 30, 2015 | AA42: Norfolk Pole Rentals – Billed | AL42: Lakefront Utilities Inc. | AM42: Hydro Ottawa Limited | AO42: GENERAL SERVICE EQUAL TO OR GREATER THAN 1,500 KW | AP42: kW
A43: GENERAL SERVICE EQUAL TO OR GREATER THAN 1,500 KW - INTERVAL METERED | I43: Rate Rider for Deferral/Variance Account Disposition (2014) - effective until December 31, 2014 | AA43: Optional Interval/TOU Meter charge $/month | AL43: Lakeland Power Distribution Ltd. | AM43: Innisfil Hydro Distribution Systems Limited | AO43: GENERAL SERVICE GREATER THAN 1,000 KW | AP43: kW
A44: GENERAL SERVICE GREATER THAN 1,000 KW | I44: Rate Rider for Deferral/Variance Account Disposition (2014) - effective until December 31, 2015 | AA44: Overtime Locate | AL44: London Hydro Inc. | AM44: Kashechewan Power Corporation | AO44: GENERAL SERVICE INTERMEDIATE 1,000 TO 4,999 KW | AP44: kW
A45: GENERAL SERVICE GREATER THAN 50 kW - WMP | I45: Rate Rider for Deferral/Variance Account Dispositon (2012) - effective until April 30, 2016 | AA45: Owner Requested Disconnection/Reconnection – after regular hours | AL45: Midland Power Utility Corporation | AM45: Kenora Hydro Electric Corporation Ltd. | AO45: GENERAL SERVICE INTERMEDIATE RATE CLASS 1,000 TO 4,999 KW (FORMERLY GENERAL SERVICE > 50 KW CUSTOMERS) | AP45: kW
A46: GENERAL SERVICE INTERMEDIATE 1,000 TO 4,999 KW | I46: Rate Rider for Disposition of Accounting Changes Under CGAAP Account 1576 - effective until April 30, 2016 | AA46: Owner Requested Disconnection/Reconnection – during regular hours | AL46: Milton Hydro Distribution inc. | AM46: Kingston Hydro Corporation | AO46: GENERAL SERVICE INTERMEDIATE RATE CLASS 1,000 TO 4,999 KW (FORMERLY LARGE USE CUSTOMERS) | AP46: kW
A47: GENERAL SERVICE INTERMEDIATE RATE CLASS 1,000 TO 4,999 KW (FORMERLY GENERAL SERVICE > 50 KW CUSTOMERS) | I47: Rate Rider for Disposition of Deferral/Variance Accounts (2010) - effective until December 31, 2014 | AA47: Returned cheque (plus bank charges) | AL47: Newmarket - Tay Power Distribution Ltd. | AM47: Kitchener-Wilmot Hydro Inc. | AO47: GENERAL SERVICE LESS THAN 50 KW - SINGLE PHASE ENERGY-BILLED [G1] | AP47: kWh
A48: GENERAL SERVICE INTERMEDIATE RATE CLASS 1,000 TO 4,999 KW (FORMERLY LARGE USE CUSTOMERS) | I48: Rate Rider for Disposition of Deferral/Variance Accounts (2011) - effective until April 30, 2015 | AA48: Rural system expansion / line connection fee | AL48: Niagara Peninsula Energy Inc. | AM48: Lakefront Utilities Inc. | AO48: GENERAL SERVICE LESS THAN 50 KW - THREE PHASE ENERGY-BILLED [G3] | AP48: kWh
A49: GENERAL SERVICE LESS THAN 50 KW | I49: Rate Rider for Disposition of Deferral/Variance Accounts (2011) - effective until April 30, 2016 | AA49: Same Day Open Trench | AL49: Niagara-on-the-Lake Hydro Inc. | AM49: Lakeland Power Distribution Ltd. | AO49: GENERAL SERVICE LESS THAN 50 KW - TRANSMISSION CLASS ENERGY-BILLED [T] | AP49: kWh
A50: GENERAL SERVICE LESS THAN 50 KW - SINGLE PHASE ENERGY-BILLED [G1] | I50: Rate Rider for Disposition of Deferral/Variance Accounts (2012) - effective until April 30, 2014 | AA50: Scheduled Day Open Trench | AL50: Norfolk Power Distribution Inc. | AM50: London Hydro Inc. | AO50: GENERAL SERVICE LESS THAN 50 KW - URBAN ENERGY-BILLED [UG] | AP50: kWh
A51: GENERAL SERVICE LESS THAN 50 KW - THREE PHASE ENERGY-BILLED [G3] | I51: Rate Rider for Disposition of Deferral/Variance Accounts (2012) - effective until April 30, 2015 | AA51: Service call – after regular hours | AL51: North Bay Hydro Distribution Limited | AM51: Midland Power Utility Corporation | AO51: GENERAL SERVICE LESS THAN 50 KW | AP51: kWh
A52: GENERAL SERVICE LESS THAN 50 KW - TRANSMISSION CLASS ENERGY-BILLED [T] | I52: Rate Rider for Disposition of Deferral/Variance Accounts (2012) - effective until April 30, 2016 | AA52: Service call – customer owned equipment | AL52: Northern Ontario Wires Inc. | AM52: Milton Hydro Distribution inc. | AO52: GENERAL SERVICE SINGLE PHASE - G1 | AP52: kW
A53: GENERAL SERVICE LESS THAN 50 KW - URBAN ENERGY-BILLED [UG] | I53: Rate Rider for Disposition of Deferral/Variance Accounts (2012) - effective until August 31, 2014 | AA53: Service Call – Customer-owned Equipment – After Regular Hours | AL53: Oakville Hydro Electricity Distribution Inc. | AM53: Newmarket - Tay Power Distribution Ltd. - Newmarket | AO53: GENERAL SERVICE THREE PHASE - G3 | AP53: kW
A54: GENERAL SERVICE SINGLE PHASE - G1 | I54: Rate Rider for Disposition of Deferral/Variance Accounts (2012) - effective until December 31, 2015 | AA54: Service Call – Customer-owned Equipment – During Regular Hours | AL54: Orangeville Hydro Limited | AM54: Newmarket - Tay Power Distribution Ltd. - Tay | AO54: INTERMEDIATE USERS | AP54: kW
A55: GENERAL SERVICE THREE PHASE - G3 | I55: Rate Rider for Disposition of Deferral/Variance Accounts (2012) - effective until December 31, 2016 Applicable only in the former service area of Clinton Power | AA55: Service Charge for onsite interrogation of interval meter due to customer phone line failure - required weekly until line repaired $ 6 | AL55: Orillia Power Distribution Corporation | AM55: Niagara Peninsula Energy Inc. - Niagara Falls | AO55: INTERMEDIATE WITH SELF GENERATION | AP55: kW
A56: INTERMEDIATE USERS | I56: Rate Rider for Disposition of Deferral/Variance Accounts (2012) – effective until December 31, 2016 Applicable only in the former service area of Clinton Power | AA56: Service Layout - Commercial | AL56: Oshawa PUC Networks Inc. | AM56: Niagara Peninsula Energy Inc. - Peninsula West | AO56: LARGE USE - 3TS | AP56: kW
A57: INTERMEDIATE WITH SELF GENERATION | I57: Rate Rider for Disposition of Deferral/Variance Accounts (2012) - effective until January 31, 2014 | AA57: Service Layout - ResidentiaI | AL57: Ottawa River Power Corporation | AM57: Niagara-on-the-Lake Hydro Inc. | AO57: LARGE USE - FORD ANNEX | AP57: kW
A58: LARGE USE | I58: Rate Rider for Disposition of Deferral/Variance Accounts (2012) - effective until June 30, 2014 | AA58: Special Billing Service (sub-metering charge per meter) | AL58: Parry Sound Power Corporation | AM58: Norfolk Power Distribution Inc. | AO58: LARGE USE - REGULAR | AP58: kW
A59: LARGE USE - 3TS | I59: Rate Rider for Disposition of Deferral/Variance Accounts (2013) - Applicable only to Wholesale Market Participants - effective until April 30, 2015 | AA59: Special meter reads | AL59: Peterborough Distribution Incorporated | AM59: North Bay Hydro Distribution Limited | AO59: LARGE USE > 5000 KW | AP59: kW
A60: LARGE USE - FORD ANNEX | I60: Rate Rider for Disposition of Deferral/Variance Accounts (2013) - effective until April 30, 2014 | AA60: Specific Charge for Access to the Power Poles - $/pole/year | AL60: PowerStream Inc. | AM60: Northern Ontario Wires Inc. | AO60: LARGE USE | AP60: kW
A61: LARGE USE - REGULAR | I61: Rate Rider for Disposition of Deferral/Variance Accounts (2013) - effective until April 30, 2015 | AA61: Specific Charge for Bell Canada Access to the Power Poles – per pole/year | AL61: PUC Distribution Inc. | AM61: Oakville Hydro Electricity Distribution Inc. | AO61: microFIT | AP61: $
A62: LARGE USE > 5000 KW | I62: Rate Rider for Disposition of Deferral/Variance Accounts (2013) - effective until April 30, 2015, not applicable to Wholesale Market Participants | AA62: Switching for company maintenance – Charge based on Time and Materials | AL62: Renfrew Hydro Inc. | AM62: Orangeville Hydro Limited | AO62: RESIDENTIAL - HENSALL | AP62: kWh
A63: microFIT | I63: Rate Rider for Disposition of Deferral/Variance Accounts (2013) - effective until April 30, 2017 | AA63: Temporary Service – Install & remove – overhead – no transformer | AL63: Rideau St. Lawrence Distribution Inc. | AM63: Orillia Power Distribution Corporation | AO63: RESIDENTIAL - HIGH DENSITY [R1] | AP63: kWh
A64: RESIDENTIAL | I64: Rate Rider for Disposition of Deferral/Variance Accounts (2013) - effective until August 31, 2014 | AA64: Temporary Service – Install & remove – overhead – with transformer | AL64: Sioux Lookout Hydro Inc. | AM64: Oshawa PUC Networks Inc. | AO64: RESIDENTIAL - LOW DENSITY [R2] | AP64: kWh
A65: RESIDENTIAL - HENSALL | I65: Rate Rider for Disposition of Deferral/Variance Accounts (2013) - effective until December 31, 2014 | AA65: Temporary Service – Install & remove – underground – no transformer | AL65: St. Thomas Energy Inc. | AM65: Ottawa River Power Corporation | AO65: RESIDENTIAL - MEDIUM DENSITY [R1] | AP65: kWh
A66: RESIDENTIAL - HIGH DENSITY [R1] | I66: Rate Rider for Disposition of Deferral/Variance Accounts (2013) - effective until May 31, 2014 | AA66: Temporary service install & remove – overhead – no transformer | AL66: Thunder Bay Hydro Electricity Distribution Inc. | AM66: Parry Sound Power Corporation | AO66: RESIDENTIAL - NORMAL DENSITY [R2] | AP66: kWh
A67: RESIDENTIAL - LOW DENSITY [R2] | I67: Rate Rider for Disposition of Deferred PILs Variance Account 1562 - effective until March 31, 2016 | AA67: Temporary Service Install & Remove – Overhead – With Transformer | AL67: Tillsonburg Hydro Inc. | AM67: Peterborough Distribution Incorporated | AO67: RESIDENTIAL - TIME OF USE | AP67: kWh
A68: RESIDENTIAL - MEDIUM DENSITY [R1] | I68: Rate Rider for Disposition of Deferred PILs Variance Account 1562 (2012) - effective until April 30, 2015 | AA68: Temporary Service Install & Remove – Underground – No Transformer | AL68: Toronto Hydro-Electric System Limited | AM68: PowerStream Inc. - Barrie | AO68: RESIDENTIAL - URBAN [UR] | AP68: kWh
A69: RESIDENTIAL - NORMAL DENSITY [R2] | I69: Rate Rider for Disposition of Deferred PILs Variance Account 1562 (2012) - effective until April 30, 2016 | AA69: Temporary service installation and removal – overhead – no transformer | AL69: Veridian Connections Inc. | AM69: PowerStream Inc. - South | AO69: RESIDENTIAL REGULAR | AP69: kWh
A70: RESIDENTIAL - TIME OF USE | I70: Rate Rider for Disposition of Deferred PILs Variance Account 1562 (2nd Installment - 2012) - effective until April 30, 2016 | AA70: Temporary service installation and removal – overhead – with transformer | AL70: Wasaga Distribution Inc. | AM70: PUC Distribution Inc. | AO70: RESIDENTIAL | AP70: kWh
A71: RESIDENTIAL - URBAN [UR] | I71: Rate Rider for Disposition of Deferred PILs Variance Account 1562 (per connection) (2012) - effective until April 30, 2015 | AA71: Temporary service installation and removal – underground – no transformer | AL71: Waterloo North Hydro Inc. | AM71: Renfrew Hydro Inc. | AO71: RESIDENTIAL SUBURBAN SEASONAL | AP71: kWh
A72: RESIDENTIAL REGULAR | I72: Rate Rider for Disposition of Deferred PILs Variance Account 1562 (per connection) (2012) - effective until April 30, 2016 | AL72: Welland Hydro-Electric System Corp. | AM72: Rideau St. Lawrence Distribution Inc. | AO72: RESIDENTIAL SUBURBAN | AP72: kWh
A73: RESIDENTIAL SUBURBAN | I73: Rate Rider for Disposition of Global Adjustment Sub-Account (2011) - effective until April 30, 2015 Applicable only for Non-RPP Customers | AL73: Wellington North Power Inc. | AM73: Sioux Lookout Hydro Inc. | AO73: RESIDENTIAL SUBURBAN YEAR ROUND | AP73: kWh
A74: RESIDENTIAL SUBURBAN SEASONAL | I74: Rate Rider for Disposition of Global Adjustment Sub-Account (2011) - effective until April 30, 2016 Applicable only for Non-RPP Customers | AL74: West Coast Huron Energy Inc. | AM74: St. Thomas Energy Inc. | AO74: RESIDENTIAL URBAN | AP74: kWh
A75: RESIDENTIAL SUBURBAN YEAR ROUND | I75: Rate Rider for Disposition of Global Adjustment Sub-Account (2012) - effective until April 30, 2014 Applicable only for Non-RPP Customers | AL75: West Perth Power Inc. | AM75: Thunder Bay Hydro Electricity Distribution Inc. | AO75: RESIDENTIAL URBAN YEAR-ROUND | AP75: kWh
A76: RESIDENTIAL URBAN | I76: Rate Rider for Disposition of Global Adjustment Sub-Account (2012) - effective until April 30, 2015 Applicable only for Non-RPP Customers | AL76: Westario Power Inc. | AM76: Tillsonburg Hydro Inc. | AO76: SEASONAL RESIDENTIAL - HIGH DENSITY [R3] | AP76: kWh
A77: RESIDENTIAL URBAN YEAR-ROUND | I77: Rate Rider for Disposition of Global Adjustment Sub-Account (2012) - effective until April 30, 2015 Applicatble only for Non-RPP Customers | AL77: Whitby Hydro Electric Corporation | AM77: Toronto Hydro-Electric System Limited | AO77: SEASONAL RESIDENTIAL - NORMAL DENSITY [R4] | AP77: kWh
A78: SEASONAL RESIDENTIAL | I78: Rate Rider for Disposition of Global Adjustment Sub-Account (2012) - effective until April 30, 2016 Applicable only for Non-RPP Customers | AL78: Woodstock Hydro Services Inc. | AM78: Veridian Connections Inc. | AO78: SEASONAL RESIDENTIAL | AP78: kWh
A79: SEASONAL RESIDENTIAL - HIGH DENSITY [R3] | I79: Rate Rider for Disposition of Global Adjustment Sub-Account (2012) - effective until January 31, 2014. Applicable only for Non-RPP Customers | AM79: Veridian Connections Inc. - Gravenhurst | AO79: SENTINEL LIGHTING | AP79: kW
A80: SEASONAL RESIDENTIAL - NORMAL DENSITY [R4] | I80: Rate Rider for Disposition of Global Adjustment Sub-Account (2012) - effective until June 30, 2014 Applicable only for Non-RPP Customers | AM80: Wasaga Distribution Inc. | AO80: SMALL COMMERCIAL AND USL - PER CONNECTION | AP80: kW
A81: SENTINEL LIGHTING | I81: Rate Rider for Disposition of Global Adjustment Sub-Account (2012) Applicable only for Non-RPP Customers - effective until August 31, 2014 | AM81: Waterloo North Hydro Inc. | AO81: SMALL COMMERCIAL AND USL - PER METER | AP81: kW
A82: SMALL COMMERCIAL AND USL - PER CONNECTION | I82: Rate Rider for Disposition of Global Adjustment Sub-Account (2012) Applicable only to Non-RPP Customers - effective until August 31, 2014 | AM82: Welland Hydro-Electric System Corp. | AO82: STANDARD A GENERAL SERVICE AIR ACCESS | AP82: kW
A83: SMALL COMMERCIAL AND USL - PER METER | I83: Rate Rider for Disposition of Global Adjustment Sub-Account (2013) - effective until April 30, 2014 Applicable only for Non-RPP Customers | AM83: Wellington North Power Inc. | AO83: STANDARD A GENERAL SERVICE ROAD/RAIL | AP83: kW
A84: STANDARD A GENERAL SERVICE AIR ACCESS | I84: Rate Rider for Disposition of Global Adjustment Sub-Account (2013) - effective until April 30, 2015 Applicable only for Non-RPP Customers | AM84: West Coast Huron Energy Inc. | AO84: STANDARD A RESIDENTIAL AIR ACCESS | AP84: kW
A85: STANDARD A GENERAL SERVICE ROAD/RAIL | I85: Rate Rider for Disposition of Global Adjustment Sub-Account (2013) - effective until April 30, 2015 Applicable only for Non-RPP Customers and excluding Wholesale Market Participants | AM85: West Perth Power Inc. | AO85: STANDARD A RESIDENTIAL ROAD/RAIL | AP85: kW
A86: STANDARD A GRID CONNECTED | I86: Rate Rider for Disposition of Global Adjustment Sub-Account (2013) - effective until April 30, 2017 Applicable only for Non-RPP Customers | AM86: Westario Power Inc. | AO86: STANDBY - GENERAL SERVICE 1,000 - 5,000 KW | AP86: kW
A87: STANDARD A RESIDENTIAL AIR ACCESS | I87: Rate Rider For Disposition of Global Adjustment Sub-Account (2013) - effective until August 31, 2014 Applicable only for Non-RPP Customers | AM87: Whitby Hydro Electric Corporation | AO87: STANDBY - GENERAL SERVICE 50 - 1,000 KW | AP87: kW
A88: STANDARD A RESIDENTIAL ROAD/RAIL | I88: Rate Rider for Disposition of Global Adjustment Sub-Account (2013) - effective until December 31, 2014 Applicable only for Non-RPP Customers | AM88: Woodstock Hydro Services Inc. | AO88: STANDBY - LARGE USE | AP88: kW
A89: STANDBY - GENERAL SERVICE 1,000 - 5,000 KW | I89: Rate Rider for Disposition of Global Adjustment Sub-Account (2013) - effective until May 31, 2014 Applicable only for Non-RPP Customers | AO89: STANDBY DISTRIBUTION SERVICE | AP89: kW
A90: STANDBY - GENERAL SERVICE 50 - 1,000 KW | I90: Rate Rider for Disposition of Global Adjustment Sub-Account (2014) - effective until December 31, 2014. Applicable only for Non-RPP - Class B Customers | AO90: STANDBY POWER - APPROVED ON AN INTERIM BASIS | AP90: kW
A91: STANDBY - LARGE USE | I91: Rate Rider for Disposition of Global Adjustment Sub-Account (2014) - effective until December 31, 2014. Applicable only for Non-RPP Customers | AO91: STANDBY POWER GENERAL SERVICE 1,500 TO 4,999 KW | AP91: kW
A92: STANDBY DISTRIBUTION SERVICE | I92: Rate Rider for Disposition of Global Adjustment Sub-Account (2014) - effective until December 31, 2014. Applicable only for Non-RPP Customers - Class A Customers | AO92: STANDBY POWER GENERAL SERVICE 50 TO 1,499 KW | AP92: kW
A93: STANDBY POWER | I93: Rate Rider for Disposition of Global Adjustment Sub-Account (2014) - effective until December 31, 2014. Applicable only for Non-RPP Customers - Interval Metered | AO93: STANDBY POWER GENERAL SERVICE LARGE USE | AP93: kW
A94: STANDBY POWER - APPROVED ON AN INTERIM BASIS | I94: Rate Rider for Disposition of Global Adjustment Sub-Account (2014) - effective until December 31, 2014. Applicable only for Non-RPP Customers - Non Interval Metered | AO94: STANDBY POWER | AP94: kW
A95: STANDBY POWER GENERAL SERVICE 1,500 TO 4,999 KW | I95: Rate Rider for Disposition of Post Retirement Actuarial Gain - effective until March 31, 2025 | AO95: STREET LIGHTING | AP95: kWh
A96: STANDBY POWER GENERAL SERVICE 50 TO 1,499 KW | I96: Rate Rider for Disposition of Residual Hisotrical Smart Meter Costs - effective until April 30, 2015 | AO96: SUB TRANSMISSION [ST] | AP96: kW
A97: STANDBY POWER GENERAL SERVICE LARGE USE | I97: Rate Rider for Disposition of Residual Hisotrical Smart Meter Costs - effective until April 30, 2017 | AO97: UNMETERED SCATTERED LOAD | AP97: kWh
A98: STREET LIGHTING | I98: Rate Rider for Disposition of Residual Historical Smart Meter Costs - effective until April 30, 2014 | AO98: URBAN GENERAL SERVICE DEMAND BILLED (50 KW AND ABOVE) [UGD] | AP98: kW
A99: SUB TRANSMISSION [ST] | I99: Rate Rider for Disposition of Residual Historical Smart Meter Costs - effective until April 30, 2016 | AO99: URBAN GENERAL SERVICE ENERGY BILLED (LESS THAN 50 KW) [UGE] | AP99: kWh
A100: UNMETERED SCATTERED LOAD | I100: Rate Rider for Disposition of Residual Historical Smart Meter Costs - effective until August 31, 2014 | AO100: WESTPORT SEWAGE TREATMENT PLANT | AP100: kW
A101: URBAN GENERAL SERVICE DEMAND BILLED (50 KW AND ABOVE) [UGD] | I101: Rate Rider for Disposition of Residual Historical Smart Meter Costs - effective until August 31, 2015 | AO101: YEAR-ROUND RESIDENTIAL - R2 | AP101: kWh
A102: URBAN GENERAL SERVICE ENERGY BILLED (LESS THAN 50 KW) [UGE] | I102: Rate Rider for Disposition of Residual Historical Smart Meter Costs - effective until December 31, 2014
A103: WESTPORT SEWAGE TREATMENT PLANT | I103: Rate Rider for Disposition of Residual Historical Smart Meter Costs – effective until December 31, 2014
A104: YEAR-ROUND RESIDENTIAL - R2 | I104: Rate Rider for Disposition of Residual Historical Smart Meter Costs - effective until December 31, 2015
I105: Rate Rider for Disposition of Residual Historical Smart Meter Costs - effective until December 31, 2016
I106: Rate Rider for Disposition of Residual Historical Smart Meter Costs - effective until October 31, 2014
I107: Rate Rider for Disposition of Residual Historical Smart Meter Costs - effective until September 30, 2014
I108: Rate Rider for Disposition of Residual Historical Smart Meter Costs - Non-Interval Metered - effective until April 30, 2014
I109: Rate Rider for Disposition of Residual Historical Smart Meter Costs 2 - in effect until the effective date of the next cost of service-based rate order
I110: Rate Rider for Disposition of Residual Historical Smart Meter Costs 3 - in effect until the effective date of the next cost of service-based rate order
I111: Rate Rider for Disposition of Residual Incremental Historical Smart Meter Costs - effective until August 31, 2015
I112: Rate Rider for Disposition of Stranded Meter costs - effective until April 30, 2015
I113: Rate Rider for Disposition of Stranded Meter Costs - effective until April 30, 2016
I114: Rate Rider for Disposition of Stranded Meter Costs - effective until April 30, 2017
I115: Rate Rider for Global Adjustment Sub Account Disposition - effective until April 30, 2016 Applicable only for Non RPP Customers
I116: Rate Rider for Global Adjustment Sub-Account Disposition Applicable only for Non-RPP Customers – effective until April 30, 2015
I117: Rate Rider for Global Adjustment Sub-Account Disposition (2014) - effective until April 28, 2016 Applicable only for Non-RPP Customers
I118: Rate Rider for Global Adjustment Sub-Account Disposition (2014) - effective until April 30, 2015 Applicable only for Non-RPP Customers
I119: Rate Rider for Global Adjustment Sub-Account Disposition (2014) - effective until December 30, 2015 Applicable only for Non-RPP Customers
I120: Rate Rider for Global Adjustment Sub-Account Disposition (2014) - effective until December 31, 2014 Applicable only for Non-RPP Customers
I121: Rate Rider for Global Adjustment Sub-Account Disposition (2014) - effective until December 31, 2015 Applicable only for Non-RPP Customers
I122: Rate Rider for Global Adjustment Sub-Account Disposition (2014) - effective until December, 2015 Applicable only for Non-RPP Customers
I123: Rate Rider for Incremental Capital - Distribution Volumetric - effective until April 30, 2016
I124: Rate Rider for Incremental Capital - Service Charge - effective until April 30, 2016
I125: Rate Rider for Incremental Capital (2012) - effective until April 30, 2015
I126: Rate Rider for Lost Revenue Adjustment Mechanism Variance Account (LRAMVA) Recovery (2012 CDM Activities) - effective until April 30, 2015
I127: Rate Rider for Recover of Residual Historical Smart meter Costs - effective until June 30, 2014
I128: Rate Rider for Recovery of CGAAP/CWIP Differential - in effect until December 31, 2016
I129: Rate Rider for Recovery of Foregone Revenue - effective until April 30, 2015
I130: Rate Rider for Recovery of Forgone Revenue - effective until April 30, 2015
I131: Rate Rider for Recovery of Forgone Revenue - effective until December 31, 2014
I132: Rate Rider for Recovery of Green Energy Act related costs - effective until December 31, 2014
I133: Rate Rider for Recovery of Incremental Capital (2013) - in effect until the effective date of the next cost of service-based rate order
I134: Rate Rider for Recovery of Incremental Capital (2013) - in effect until the effective date of the next cost of service-based rate order
I135: Rate Rider for Recovery of Incremental Capital (2013) (per connection) - in effect until the effective date of the next cost of service-based rate order
I136: Rate Rider for Recovery of Incremental Capital (2013) (per connection)- in effect until the effective date of the next cost of service-based rate order
I137: Rate Rider for Recovery of Incremental Capital Costs
I138: Rate Rider for Recovery of Incremental Capital Costs - effective until April 30, 2015
I139: Rate Rider for Recovery of Lost Revenue Adjustment Mechanism ( LRAM)/Shared Savings Mechanism (SSM) (2012) - effective until August 31, 2014
I140: Rate Rider for Recovery of Lost Revenue Adjustment Mechanism (2013) - effective until December 31, 2014
I141: Rate Rider for Recovery of Lost Revenue Adjustment Mechanism (LRAM) - effective until April 30, 2016
I142: Rate Rider for Recovery of Lost Revenue Adjustment Mechanism (LRAM) (pre-2011 CDM Activities) - effective until April 30, 2015
I143: Rate Rider for Recovery of Lost Revenue Adjustment Mechanism (LRAM) (pre-2011 CDM Activities) (2013) - effective until April 30, 2015
I144: Rate Rider for Recovery of Lost Revenue Adjustment Mechanism (LRAM)/Shared Savings
I145: Rate Rider for Recovery of Lost Revenue Adjustment Mechanism (LRAM)/Shared Savings Mechanism (SSM) - effective until December 31, 2014 and applicable in the service area excluding the former service area of Clinton Power
I146: Rate Rider for Recovery of Lost Revenue Adjustment Mechanism (LRAM)/Shared Savings Mechanism (SSM) - effective until December 31, 2014 and applicable in the service area excluding the former service areas of Clinton Power and West Perth Power
I147: Rate Rider for Recovery of Lost Revenue Adjustment Mechanism (LRAM)/Shared Savings Mechanism (SSM) - effective until December 31, 2014 and applicable only in the former service area of Clinton Power
I148: Rate Rider for Recovery of Lost Revenue Adjustment Mechanism (LRAM)/Shared Savings Mechanism (SSM) - effective until December 31, 2014 and applicable only in the former service area of West Perth Power
I149: Rate Rider for Recovery of Lost Revenue Adjustment Mechanism (LRAM)/Shared Savings Mechanism (SSM) - effective until March 31, 2016
I150: Rate Rider for Recovery of Lost Revenue Adjustment Mechanism (LRAM)/Shared Savings Mechanism (SSM) (2012) - effective until August 31, 2014
I151: Rate Rider for Recovery of Lost Revenue Adjustment Mechanism (LRAM)/Shared Savings Mechanism (SSM) Recovery - effective until April 30, 2015
I152: Rate Rider for Recovery of Lost Revenue Adjustment Mechanism Variance Account (LRAMVA) (2014) - effective until April 30, 2015
I153: Rate Rider for Recovery of Residual Historical Smart Meter Costs - effective July 1, 2012 - April 30, 2016
I154: Rate Rider for Recovery of Smart Meter Incremental Revenue Requirement - effective until the date of the next cost of service-based rate order
I155: Rate Rider for Recovery of Smart Meter Incremental Revenue Requirement - effective until the effective date of the next cost of service-based rate order, or October 31, 2017, whichever occurs earlier
I156: Rate Rider for Recovery of Smart Meter Incremental Revenue Requirement - in effect until the effective date of the next cost of service-based rate order
I157: Rate Rider for Recovery of Smart Meter Incremental Revenue Requirement - Non-Interval Metered - in effect until the effective date of the next cost of service-based rate order
I158: Rate Rider for Recovery of Smart Meter Incremental Revenue Requirements - in effect until the effective date of the next cost of service application
I159: Rate Rider for Recovery of Smart Meter Stranded Assets - effective until April 30, 2016
I160: Rate Rider for Recovery of Storm Damage Costs - effective until August 31, 2017
I161: Rate Rider for Recovery of Stranded Assets - effective until April 30, 2016
I162: Rate Rider for Recovery of Stranded Meter Assets - effective July 1, 2012 - April 30, 2016
I163: Rate Rider for Recovery of Stranded Meter Assets – effective until April 30, 2015
I164: Rate Rider for Recovery of Stranded Meter Assets - effective until April 30, 2016
I165: Rate Rider for Recovery of Stranded Meter Assets - effective until April 30, 2017
I166: Rate Rider for Recovery of Stranded Meter Assets - effective until August 31, 2015
I167: Rate Rider for Recovery of Stranded Meter Assets - effective until August 31, 2017
I168: Rate Rider for Recovery of Stranded Meter Assets - effective until December 31, 2014
I169: Rate Rider for Recovery of Stranded Meter Assets - effective until December 31, 2015
I170: Rate Rider for Recovery of Stranded Meter Assets - effective until June 30, 2016
I171: Rate Rider for Recovery of Stranded Meter Assets - effective until March 31, 2016
I172: Rate Rider for Recovery of Stranded Meter Assets - effective until May 31, 2014
I173: Rate Rider for Reversal of Deferral/Variance Account Disposition (2011) - effective until April 30, 2015
I174: Rate Rider for Smart Meter Disposition - effective until April 30, 2016
I175: Rate Rider for Smart Meter Incremental Revenue Requirement - in effect until the effective date of the next cost of service-based rate order
I176: Rate Rider for Smart Metering Entity Charge - effective until October 31, 2018
I177: Rate Rider for Stranded Meter Cost Recovery - effective until April 30, 2017
I178: Rate Rider for Tax Change
I179: Rate Rider for Tax Change - effective until April 30, 2015
I180: Rate Rider for Tax Change (2014) - effective until April 30, 2015
I181: Retail Transmission Rate - Line and Transformation Connection Service Rate
I182: Retail Transmission Rate - Line and Transformation Connection Service Rate - (less than 1,000 kW)
I183: Retail Transmission Rate - Line and Transformation Connection Service Rate - Interval Metered
I184: Retail Transmission Rate - Line and Transformation Connection Service Rate - Interval Metered (1,000 to 4,999 kW)
I185: Retail Transmission Rate - Line and Transformation Connection Service Rate - Interval Metered (less than 1,000 kW)
I186: Retail Transmission Rate - Line and Transformation Connection Service Rate - Interval Metered < 1,000 kW
I187: Retail Transmission Rate - Line and Transformation Connection Service Rate - Interval Metered > 1,000 kW
I188: Retail Transmission Rate - Line and Transformation Connection Service Rate FOR ALL SERVICE AREAS EXCEPT HENSALL
I189: Retail Transmission Rate - Line Connection Service Rate
I190: Retail Transmission Rate - Network Service Rate
I191: Retail Transmission Rate - Network Service Rate - (less than 1,000 kW)
I192: Retail Transmission Rate - Network Service Rate - Interval Metered
I193: Retail Transmission Rate - Network Service Rate - Interval Metered (1,000 to 4,999 kW)
I194: Retail Transmission Rate - Network Service Rate - Interval Metered (less than 1,000 kW)
I195: Retail Transmission Rate - Network Service Rate - Interval Metered > 1,000 kW
I196: Retail Transmission Rate - Transformation Connection Service Rate
I197: Rider for Global Adjustment Sub-Account Disposition (2012) - effective until April 30, 2016 Applicable only for Non-RPP Customers
I198: Rural or Remote Electricity Rate Protection Charge (RRRP)
I199: Sentinel lights (dusk-to-dawn) connected to unmetered wires will have a flat rate monthly energy charge added to the regular customer bill. Further servicing details are available in the distributor’s Conditions of Service.
I200: Service Charge
... 12 more rows

Sheet lists2 (hidden)
A1: RESIDENTIAL Service Classification
A4: APPLICATION
A11: MONTHLY RATES AND CHARGES - Delivery Component
A44: MONTHLY RATES AND CHARGES - Regulatory Component
A46: Wholesale Market Service Rate | C46: $/kWh | D46: 0.0044
A47: Rural Rate Protection Charge | C47: $/kWh | D47: 0.0013
A48: Standard Supply Service - Administrative Charge (if applicable) | C48: $ | D48: 0.25
A53: ALLOWANCES
A55: Transformer Allowance for Ownership - per kW of billing demand/month
A58: Primary Metering Allowance for transformer losses – applied to measured demand and energy
A60: SPECIFIC SERVICE CHARGES
A62: APPLICATION
A64: The application of these rates and charges shall be in accordance with the Licence of the Distributor and any Code or Order of the Board, and amendments thereto as approved by the Board, which may be applicable to the administration of this schedule.
A66: No charges to meet the costs of any work or service done or furnished for the purpose of the distribution of electricity shall be made except as permitted by this schedule, unless required by the Distributor’s Licence or a Code or Order of the Board, and amendments thereto as approved by the Board, or as specified herein.
A68: It should be noted that this schedule does not list any charges, assessments or credits that are required by law to be invoiced by a distributor and that are not subject to Board approval, such as the Debt Retirement Charge, the Global Adjustment, the Ontario Clean Energy Benefit and the HST.
A70: Customer Administration
A108: Non-Payment of Account
A159: RETAIL SERVICE CHARGES (if applicable)
A161: The application of these rates and charges shall be in accordance with the Licence of the Distributor and any Code or Order of the Board, and amendments thereto as approved by the Board, which may be applicable to the administration of this schedule.
A163: No rates and charges for the distribution of electricity and charges to meet the costs of any work or service done or furnished for the purpose of the distribution of electricity shall be made except as permitted by this schedule, unless required by the Distributor’s Licence or a Code or Order of the Board, and amendments thereto as approved by the Board, or as specified herein.
A165: Unless specifically noted, this schedule does not contain any charges for the electricity commodity, be it under the Regulated Price Plan, a contract with a retailer or the wholesale market price, as applicable.
A167: It should be noted that this schedule does not list any charges, assessments or credits that are required by law to be invoiced by a distributor and that are not subject to Board approval, such as the Debt Retirement Charge, the Global Adjustment, the Ontario Clean Energy Benefit and the HST.
A169: Retail Service Charges refer to services provided by a distributor to retailers or customers related to the supply of competitive electricity.
A171: One-time charge, per retailer, to establish the service agreement between the distributor and the retailer | C171: $ | D171: 100
A172: Monthly Fixed Charge, per retailer | C172: $ | D172: 20
A173: Monthly Variable Charge, per customer, per retailer | C173: $/cust. | D173: 0.5
A174: Distributor-consolidated billing monthly charge, per customer, per retailer | C174: $/cust. | D174: 0.3
A175: Retailer-consolidated billing monthly credit, per customer, per retailer | C175: $/cust. | D175: -0.3
A176: Service Transaction Requests (STR)
A177: Request fee, per request, applied to the requesting party | C177: $ | D177: 0.25
A178: Processing fee, per request, applied to the requesting party | C178: $ | D178: 0.5
A179: Request for customer information as outlined in Section 10.6.3 and Chapter 11 of the Retail
A180: Settlement Code directly to retailers and customers, if not delivered electronically through the
A181: Electronic Business Transaction (EBT) system, applied to the requesting party
A182: Up to twice a year | C182: $ | D182: no charge
A183: More than twice a year, per request (plus incremental delivery costs) | C183: $ | D183: 2
A185: LOSS FACTORS
A187: If the distributor is not capable of prorating changed loss factors jointly with distribution rates, the revised loss factors will be implemented upon the first subsequent billing for each billing cycle.

Sheet Sheet19 (hidden)
B1: CGAAP | C1: CGAAP | D1: CGAAP | E1: MIFRS | F1: USGAAP | G1: ASPE | H1: ASPE | I1: ASPE
B2: N/A | C2: 2012 | D2: 2013 | G2: N/A | H2: 2012 | I2: 2013
A3: LDC Info | B3: x | C3: x | D3: x | E3: x | F3: x | G3: x | H3: x | I3: x
A4: Table of Contents | B4: x | C4: x | D4: x | E4: x | F4: x | G4: x | H4: x | I4: x
A5: COS Flowchart | B5: x | C5: x | D5: x | E5: x | F5: x | G5: x | H5: x | I5: x
A6: List of Key References | B6: x | C6: x | D6: x | E6: x | F6: x | G6: x | H6: x | I6: x
A7: App.2-AA_Capital Projects | B7: x | C7: x | D7: x | E7: x | F7: x | G7: x | H7: x | I7: x
A8: App.2-AB_Capital Expenditures | B8: x | C8: x | D8: x | E8: x | F8: x | G8: x | H8: x | I8: x
A9: App.2-BA1_Fix Asset Cont.CGAAP | B9: x | C9: x | D9: x | E9: n | F9: x | G9: x | H9: x | I9: x
A10: App.2-BA2_Fix Asset Cont.MIFRS | B10: n | C10: n | D10: n | E10: x | F10: n | G10: n | H10: n | I10: n
A11: Appendix 2-BB Service Life Comp | B11: x | C11: x | D11: x | E11: x | F11: x | G11: x | H11: x | I11: x
A12: Instruction for App. 2-C MIFRS | B12: n | C12: n | D12: n | E12: x | F12: n | G12: n | H12: n | I12: n
A13: App.2-CA_CGAAP_DepExp_2011 | B13: n | C13: n | D13: n | E13: x | F13: n | G13: n | H13: n | I13: n
A14: App.2-CB_MIFRS_DepExp_2011 | B14: n | C14: n | D14: n | E14: x | F14: n | G14: n | H14: n | I14: n
A15: App.2-CC_MIFRS_DepExp_2012 | B15: n | C15: n | D15: n | E15: x | F15: n | G15: n | H15: n | I15: n
A16: App.2-CD_MIFRS_DepExp_2013 | B16: n | C16: n | D16: n | E16: x | F16: n | G16: n | H16: n | I16: n
A17: App.2-CE_MIFRS_DepExp_2014 | B17: n | C17: n | D17: n | E17: x | F17: n | G17: n | H17: n | I17: n
A18: App.2-CF_CGAAP_DepExp_2012 | B18: n | C18: n | D18: n | E18: x | F18: n | G18: n | H18: n | I18: n
A19: App.2-CG_MIFRS_DepExp_2012 | B19: n | C19: n | D19: n | E19: x | F19: n | G19: n | H19: n | I19: n
A20: App.2-CH_MIFRS_DepExp_2013 | B20: n | C20: n | D20: n | E20: x | F20: n | G20: n | H20: n | I20: n
A21: App.2-CI_MIFRS_DepExp_2014 | B21: n | C21: n | D21: n | E21: x | F21: n | G21: n | H21: n | I21: n
A22: App.2-CJ_CGAAP_DepExp_2012 | B22: n | C22: n | D22: n | E22: x | F22: n | G22: n | H22: n | I22: n
A23: App.2-CK_CGAAP_DepExp_2013 | B23: n | C23: n | D23: n | E23: x | F23: n | G23: n | H23: n | I23: n
A24: App.2-CL_MIFRS_DepExp_2013 | B24: n | C24: n | D24: n | E24: x | F24: n | G24: n | H24: n | I24: n
A25: App.2-CM_MIFRS_DepExp_2014 | B25: n | C25: n | D25: n | E25: x | F25: n | G25: n | H25: n | I25: n
A26: Instruction for App. 2-C CGAAP | B26: x | C26: x | D26: x | E26: n | F26: n | G26: x | H26: x | I26: x
A27: App.2-CN_OldCGAAP_DepExp_2012 | B27: x | C27: x | D27: n | E27: n | F27: n | G27: x | H27: x | I27: n
A28: App.2-CO_NewCGAAP_DepExp_2012 | B28: x | C28: x | D28: n | E28: n | F28: n | G28: x | H28: x | I28: n
A29: App.2-CP_NewCGAAP_DepExp_2013 | B29: x | C29: x | D29: n | E29: n | F29: n | G29: x | H29: x | I29: n
A30: App.2-CQ NewCGAAP_DepExp_2014 | B30: x | C30: x | D30: n | E30: n | F30: n | G30: x | H30: x | I30: n
A31: App.2-CR_OldCGAAP_DepExp_2012 | B31: x | C31: n | D31: x | E31: n | F31: n | G31: x | H31: n | I31: x
A32: App.2-CS_OldCGAAP_DepExp_2013 | B32: x | C32: n | D32: x | E32: n | F32: n | G32: x | H32: n | I32: x
A33: App.2-CT_NewCGAAP_DepExp_2013 | B33: x | C33: n | D33: x | E33: n | F33: n | G33: x | H33: n | I33: x
A34: App.2-CU_NewCGAAP_DepExp_2014 | B34: x | C34: n | D34: x | E34: n | F34: n | G34: x | H34: n | I34: x
A35: App.2-CV_USGAAP_DepExp | B35: n | C35: n | D35: n | E35: n | F35: x | G35: n | H35: n | I35: n
A36: App.2-DA_Overhead | B36: n | C36: n | D36: n | E36: x | F36: n | G36: n | H36: n | I36: n
A37: App.2-DB_Overhead | B37: x | C37: x | D37: x | E37: n | F37: n | G37: x | H37: x | I37: x
A38: App.2-EA_PP&E Deferral Account | B38: n | C38: n | D38: n | E38: x | F38: x | G38: n | H38: n | I38: n
A39: App.2-EB_PP&E Deferral Account | B39: n | C39: n | D39: n | E39: x | F39: x | G39: n | H39: n | I39: n
A40: App.2-EC_PP&E Deferral Account | B40: n | C40: n | D40: n | E40: x | F40: x | G40: n | H40: n | I40: n
A41: App.2-ED_Account 1576 (2012) | B41: x | C41: x | D41: n | E41: x | F41: x | G41: x | H41: x | I41: n
A42: App.2-EE_Account 1576 (2013) | B42: x | C42: n | D42: x | E42: x | F42: x | G42: x | H42: n | I42: x
A43: App.2-FA Proposed REG Invest. | B43: o | C43: o | D43: o | E43: o | F43: o | G43: o | H43: o | I43: o
A44: App.2-FB Calc of REG Improvemnt | B44: o | C44: o | D44: o | E44: o | F44: o | G44: o | H44: o | I44: o
A45: App.2-FC Calc of REG Expansion | B45: o | C45: o | D45: o | E45: o | F45: o | G45: o | H45: o | I45: o
A46: App.2-G SQI | B46: x | C46: x | D46: x | E46: x | F46: x | G46: x | H46: x | I46: x
A47: App.2-H_Other_Oper_Rev | B47: x | C47: x | D47: x | E47: x | F47: x | G47: x | H47: x | I47: x
A48: App.2-I LF_CDM_WF | B48: x | C48: x | D48: x | E48: x | F48: x | G48: x | H48: x | I48: x
A49: App.2-JA_OM&A_Summary_Analys | B49: x | C49: x | D49: x | E49: x | F49: x | G49: x | H49: x | I49: x
A50: App.2-JB_OM&A_Cost _Drivers | B50: x | C50: x | D50: x | E50: x | F50: x | G50: x | H50: x | I50: x
A51: App.2-JC_OMA Programs | B51: x | C51: x | D51: x | E51: x | F51: x | G51: x | H51: x | I51: x
A52: App.2-K_Employee Costs | B52: x | C52: x | D52: x | E52: x | F52: x | G52: x | H52: x | I52: x
A53: App.2-L_OM&A_per_Cust_FTEE | B53: x | C53: x | D53: x | E53: x | F53: x | G53: x | H53: x | I53: x
A54: App.2-M_Regulatory_Costs | B54: x | C54: x | D54: x | E54: x | F54: x | G54: x | H54: x | I54: x
A55: App.2-N_Corp_Cost_Allocation | B55: x | C55: x | D55: x | E55: x | F55: x | G55: x | H55: x | I55: x
A56: App.2-OA Capital Structure | B56: x | C56: x | D56: x | E56: x | F56: x | G56: x | H56: x | I56: x
A57: App.2-OB_Debt Instruments | B57: x | C57: x | D57: x | E57: x | F57: x | G57: x | H57: x | I57: x
A58: App.2-P_Cost_Allocation | B58: x | C58: x | D58: x | E58: x | F58: x | G58: x | H58: x | I58: x
A59: App.2-Q_Cost of Serv. Emb. Dx | B59: e | C59: e | D59: e | E59: e | F59: e | G59: e | H59: e | I59: e
A60: App.2-R_Loss Factors | B60: x | C60: x | D60: x | E60: x | F60: x | G60: x | H60: x | I60: x
A61: App.2-S_Stranded Meters | B61: x | C61: x | D61: x | E61: x | F61: x | G61: x | H61: x | I61: x
A62: App.2-TA_1592_Tax_Variance | B62: x | C62: x | D62: x | E62: x | F62: x | G62: x | H62: x | I62: x
A63: App.2-TB_1592_HST-OVAT | B63: x | C63: x | D63: x | E63: x | F63: x | G63: x | H63: x | I63: x
A64: App.2-U_IFRS Transition Costs | B64: x | C64: x | D64: x | E64: x | F64: x | G64: x | H64: x | I64: x
A65: App.2-V_Rev_Reconciliation | B65: x | C65: x | D65: x | E65: x | F65: x | G65: x | H65: x | I65: x
A66: App.2-W_Bill Impacts | B66: x | C66: x | D66: x | E66: x | F66: x | G66: x | H66: x | I66: x
A67: App.2-YA_MIFRS Summary Impacts | B67: n | C67: n | D67: n | E67: x | F67: n | G67: n | H67: n | I67: n
A68: App. 2-YB_CGAAP Summary Impacts | B68: x | C68: x | D68: x | E68: n | F68: n | G68: x | H68: x | I68: x
A69: App. 2-Z_Tariff | B69: x | C69: x | D69: x | E69: x | F69: x | G69: x | H69: x | I69: x
A70: lists | B70: n | C70: n | D70: n | E70: n | F70: n | G70: n | H70: n | I70: n
A71: lists2 | B71: n | C71: n | D71: n | E71: n | F71: n | G71: n | H71: n | I71: n
A72: Sheet19 | B72: n | C72: n | D72: n | E72: n | F72: n | G72: n | H72: n | I72: n
